{"text_format":"1","workbook":"xlsx","n_sheets":8,"sheets":["Discipline","1 - Eligibility criteria","2 - Financial standing","3 - Technical ability","4 - Authorisation","5 - Summary","HELP","Engine"],"not_rendered":{"charts":0,"images":0,"macros":1,"external_links":0,"defined_names":0,"comments":0,"pivot_tables":0},"unopened":[],"bounds":{"document_bytes":16777216,"sheet_cells":100000,"rows_first":2000,"rows_last":500,"rows_between":2000,"halvings":0,"cell_chars":16384,"cell_head_chars":4096},"cells_cut":1,"cells_raw":0,"read":"whole","date_system":"1900"}

{"sheet":"Discipline","index":0,"n_rows":49,"n_cols":14,"rows_kept":49,"cut":false,"hidden":false,"merged":[[7,3,8,5],[7,11,7,14],[3,3,5,7],[2,4,2,5]]}
[]
[]
[]
[null,null,null,"ANNEX 1 DPS RESPONSE TEMPLATE",null,null,null,null,null,null,null,"Tick this box if you are bidding as part of a consortium and specify the total number of members excluding the consortium leader",null,1]
[]
[null,null,null,null,null,null,null,null,null,null,null,"Tick this box if you will be using sub-contractors and specify the total number of subcontractors"]
[]
[null,null,null,"Disciplines - Please Select All the Disciplines You Intend to Bid For. Check All That Apply.",null,null,null,null,null,null,null,"Please review the disciplines you have selected for bidding. Click start to proceed to the eligibility and selection criteria."]
[]
[null,null,null,{"$f":"Engine!C2","v":"01-Financial instruments"},null,{"$f":"Engine!C15","v":"14-Communications​"},null,{"$f":"Engine!C28","v":"27-Information security​"},null,null,null,{"$f":"IFERROR(INDEX(Engine!C$2:C$41, SMALL(IF(Engine!D$2:D$41=TRUE, ROW(Engine!C$2:C$41)-ROW(Engine!C$2)+1), ROW(1:1))), \"\")","v":""}]
[null,null,null,{"$f":"Engine!C3","v":"02-Market Infrastructure​"},null,{"$f":"Engine!C16","v":"15-Human resources and organisation"},null,{"$f":"Engine!C29","v":"28-Environmental, social and governance framework​"},null,null,null,{"$f":"IFERROR(INDEX(Engine!C$2:C$41, SMALL(IF(Engine!D$2:D$41=TRUE, ROW(Engine!C$2:C$41)-ROW(Engine!C$2)+1), ROW(2:2))), \"\")","v":""}]
[null,null,null,{"$f":"Engine!C4","v":"03-Capital Markets functions​"},null,{"$f":"Engine!C17","v":"16-Audit​"},null,{"$f":"Engine!C30","v":"29-Strategy development and performance measurement​"},null,null,null,{"$f":"IFERROR(INDEX(Engine!C$2:C$41, SMALL(IF(Engine!D$2:D$41=TRUE, ROW(Engine!C$2:C$41)-ROW(Engine!C$2)+1), ROW(3:3))), \"\")","v":""}]
[null,null,null,{"$f":"Engine!C5","v":"04-Risk management​"},null,{"$f":"Engine!C18","v":"17-Administration, controls and compliance"},null,{"$f":"Engine!C31","v":"30-Project portfolio, programme and project management"},null,null,null,{"$f":"IFERROR(INDEX(Engine!C$2:C$41, SMALL(IF(Engine!D$2:D$41=TRUE, ROW(Engine!C$2:C$41)-ROW(Engine!C$2)+1), ROW(4:4))), \"\")","v":""}]
[null,null,null,{"$f":"Engine!C6","v":"05-IT Financial Systems​"},null,{"$f":"Engine!C19","v":"18-Insurance Advisory​ services"},null,{"$f":"Engine!C32","v":"31-Business Analysis​"},null,null,null,{"$f":"IFERROR(INDEX(Engine!C$2:C$41, SMALL(IF(Engine!D$2:D$41=TRUE, ROW(Engine!C$2:C$41)-ROW(Engine!C$2)+1), ROW(5:5))), \"\")","v":""}]
[null,null,null,{"$f":"Engine!C7","v":"06-IT Security​"},null,{"$f":"Engine!C20","v":"19-Procurement​"},null,{"$f":"Engine!C33","v":"32-Change management​"},null,null,null,{"$f":"IFERROR(INDEX(Engine!C$2:C$41, SMALL(IF(Engine!D$2:D$41=TRUE, ROW(Engine!C$2:C$41)-ROW(Engine!C$2)+1), ROW(6:6))), \"\")","v":""}]
[null,null,null,{"$f":"Engine!C8","v":"07-Enterprise / IT Architecture and infrastructure​"},null,{"$f":"Engine!C21","v":"20-Policy review, development and evaluation​"},null,{"$f":"Engine!C34","v":"33-Physical security and Facilities Management (FM) support"},null,null,null,{"$f":"IFERROR(INDEX(Engine!C$2:C$41, SMALL(IF(Engine!D$2:D$41=TRUE, ROW(Engine!C$2:C$41)-ROW(Engine!C$2)+1), ROW(7:7))), \"\")","v":""}]
[null,null,null,{"$f":"Engine!C9","v":"08-Outsourced service providers and cloud services​"},null,{"$f":"Engine!C22","v":"21-Board Affairs and Shareholder relations"},null,{"$f":"Engine!C35","v":"34-Personal data protection advisory services (excluding legal services)"},null,null,null,{"$f":"IFERROR(INDEX(Engine!C$2:C$41, SMALL(IF(Engine!D$2:D$41=TRUE, ROW(Engine!C$2:C$41)-ROW(Engine!C$2)+1), ROW(8:8))), \"\")","v":""}]
[null,null,null,{"$f":"Engine!C10","v":"09-Application development​"},null,{"$f":"Engine!C23","v":"22-Internal policies, processes and internal control​"},null,{"$f":"Engine!C36","v":"35-Compliance and ethics advisory services"},null,null,null,{"$f":"IFERROR(INDEX(Engine!C$2:C$41, SMALL(IF(Engine!D$2:D$41=TRUE, ROW(Engine!C$2:C$41)-ROW(Engine!C$2)+1), ROW(9:9))), \"\")","v":""}]
[null,null,null,{"$f":"Engine!C11","v":"10-Digital transformation​"},null,{"$f":"Engine!C24","v":"23-Business Continuity Framework development"},null,{"$f":"Engine!C37","v":"36-Macro-economic and financial risk assessment and evaluation of financial assistance programmes​"},null,null,null,{"$f":"IFERROR(INDEX(Engine!C$2:C$41, SMALL(IF(Engine!D$2:D$41=TRUE, ROW(Engine!C$2:C$41)-ROW(Engine!C$2)+1), ROW(10:10))), \"\")","v":""}]
[null,null,null,{"$f":"Engine!C12","v":"11-ERP platforms​"},null,{"$f":"Engine!C25","v":"24-Records Management​"},null,{"$f":"Engine!C38","v":"37-Macro/micro economic and financial sector data analysis and systems​"},null,null,null,{"$f":"IFERROR(INDEX(Engine!C$2:C$41, SMALL(IF(Engine!D$2:D$41=TRUE, ROW(Engine!C$2:C$41)-ROW(Engine!C$2)+1), ROW(11:11))), \"\")","v":""}]
[null,null,null,{"$f":"Engine!C13","v":"12-Microsoft applications​"},null,{"$f":"Engine!C26","v":"25-Data Governance​"},null,{"$f":"Engine!C39","v":"38-Common Single  Resolution Fund backstop, Direct Recapitalisation Instrument and Repayment capacity assessment​"},null,null,null,{"$f":"IFERROR(INDEX(Engine!C$2:C$41, SMALL(IF(Engine!D$2:D$41=TRUE, ROW(Engine!C$2:C$41)-ROW(Engine!C$2)+1), ROW(12:12))), \"\")","v":""}]
[null,null,null,{"$f":"Engine!C14","v":"13-Corporate IT Generalist "},null,{"$f":"Engine!C27","v":"26-Data Management"},null,{"$f":"Engine!C40","v":"39-Bank restructuring, non performing loans disposal, asset management companies and distressed asset management​"},null,null,null,{"$f":"IFERROR(INDEX(Engine!C$2:C$41, SMALL(IF(Engine!D$2:D$41=TRUE, ROW(Engine!C$2:C$41)-ROW(Engine!C$2)+1), ROW(13:13))), \"\")","v":""}]
[null,null,null,null,null,null,null,{"$f":"Engine!C41","v":"40-Banking sector’s future developments like Fintech, BigTech, business model evolution​"},null,null,null,{"$f":"IFERROR(INDEX(Engine!C$2:C$41, SMALL(IF(Engine!D$2:D$41=TRUE, ROW(Engine!C$2:C$41)-ROW(Engine!C$2)+1), ROW(14:14))), \"\")","v":""}]
[null,null,null,null,null,null,null,null,null,null,null,{"$f":"IFERROR(INDEX(Engine!C$2:C$41, SMALL(IF(Engine!D$2:D$41=TRUE, ROW(Engine!C$2:C$41)-ROW(Engine!C$2)+1), ROW(15:15))), \"\")","v":""}]
[null,null,null,null,null,null,null,null,null,null,null,{"$f":"IFERROR(INDEX(Engine!C$2:C$41, SMALL(IF(Engine!D$2:D$41=TRUE, ROW(Engine!C$2:C$41)-ROW(Engine!C$2)+1), ROW(16:16))), \"\")","v":""}]
[null,null,null,null,null,null,null,null,null,null,null,{"$f":"IFERROR(INDEX(Engine!C$2:C$41, SMALL(IF(Engine!D$2:D$41=TRUE, ROW(Engine!C$2:C$41)-ROW(Engine!C$2)+1), ROW(17:17))), \"\")","v":""}]
[null,null,null,null,null,null,null,null,null,null,null,{"$f":"IFERROR(INDEX(Engine!C$2:C$41, SMALL(IF(Engine!D$2:D$41=TRUE, ROW(Engine!C$2:C$41)-ROW(Engine!C$2)+1), ROW(18:18))), \"\")","v":""}]
[null,null,null,null,null,null,null,null,null,null,null,{"$f":"IFERROR(INDEX(Engine!C$2:C$41, SMALL(IF(Engine!D$2:D$41=TRUE, ROW(Engine!C$2:C$41)-ROW(Engine!C$2)+1), ROW(19:19))), \"\")","v":""}]
[null,null,null,null,null,null,null,null,null,null,null,{"$f":"IFERROR(INDEX(Engine!C$2:C$41, SMALL(IF(Engine!D$2:D$41=TRUE, ROW(Engine!C$2:C$41)-ROW(Engine!C$2)+1), ROW(20:20))), \"\")","v":""}]
[null,null,null,null,null,null,null,null,null,null,null,{"$f":"IFERROR(INDEX(Engine!C$2:C$41, SMALL(IF(Engine!D$2:D$41=TRUE, ROW(Engine!C$2:C$41)-ROW(Engine!C$2)+1), ROW(21:21))), \"\")","v":""}]
[null,null,null,null,null,null,null,null,null,null,null,{"$f":"IFERROR(INDEX(Engine!C$2:C$41, SMALL(IF(Engine!D$2:D$41=TRUE, ROW(Engine!C$2:C$41)-ROW(Engine!C$2)+1), ROW(22:22))), \"\")","v":""}]
[null,null,null,null,null,null,null,null,null,null,null,{"$f":"IFERROR(INDEX(Engine!C$2:C$41, SMALL(IF(Engine!D$2:D$41=TRUE, ROW(Engine!C$2:C$41)-ROW(Engine!C$2)+1), ROW(23:23))), \"\")","v":""}]
[null,null,null,null,null,null,null,null,null,null,null,{"$f":"IFERROR(INDEX(Engine!C$2:C$41, SMALL(IF(Engine!D$2:D$41=TRUE, ROW(Engine!C$2:C$41)-ROW(Engine!C$2)+1), ROW(24:24))), \"\")","v":""}]
[null,null,null,null,null,null,null,null,null,null,null,{"$f":"IFERROR(INDEX(Engine!C$2:C$41, SMALL(IF(Engine!D$2:D$41=TRUE, ROW(Engine!C$2:C$41)-ROW(Engine!C$2)+1), ROW(25:25))), \"\")","v":""}]
[null,null,null,null,null,null,null,null,null,null,null,{"$f":"IFERROR(INDEX(Engine!C$2:C$41, SMALL(IF(Engine!D$2:D$41=TRUE, ROW(Engine!C$2:C$41)-ROW(Engine!C$2)+1), ROW(26:26))), \"\")","v":""}]
[null,null,null,null,null,null,null,null,null,null,null,{"$f":"IFERROR(INDEX(Engine!C$2:C$41, SMALL(IF(Engine!D$2:D$41=TRUE, ROW(Engine!C$2:C$41)-ROW(Engine!C$2)+1), ROW(27:27))), \"\")","v":""}]
[null,null,null,null,null,null,null,null,null,null,null,{"$f":"IFERROR(INDEX(Engine!C$2:C$41, SMALL(IF(Engine!D$2:D$41=TRUE, ROW(Engine!C$2:C$41)-ROW(Engine!C$2)+1), ROW(28:28))), \"\")","v":""}]
[null,null,null,null,null,null,null,null,null,null,null,{"$f":"IFERROR(INDEX(Engine!C$2:C$41, SMALL(IF(Engine!D$2:D$41=TRUE, ROW(Engine!C$2:C$41)-ROW(Engine!C$2)+1), ROW(29:29))), \"\")","v":""}]
[null,null,null,null,null,null,null,null,null,null,null,{"$f":"IFERROR(INDEX(Engine!C$2:C$41, SMALL(IF(Engine!D$2:D$41=TRUE, ROW(Engine!C$2:C$41)-ROW(Engine!C$2)+1), ROW(30:30))), \"\")","v":""}]
[null,null,null,null,null,null,null,null,null,null,null,{"$f":"IFERROR(INDEX(Engine!C$2:C$41, SMALL(IF(Engine!D$2:D$41=TRUE, ROW(Engine!C$2:C$41)-ROW(Engine!C$2)+1), ROW(31:31))), \"\")","v":""}]
[null,null,null,null,null,null,null,null,null,null,null,{"$f":"IFERROR(INDEX(Engine!C$2:C$41, SMALL(IF(Engine!D$2:D$41=TRUE, ROW(Engine!C$2:C$41)-ROW(Engine!C$2)+1), ROW(32:32))), \"\")","v":""}]
[null,null,null,null,null,null,null,null,null,null,null,{"$f":"IFERROR(INDEX(Engine!C$2:C$41, SMALL(IF(Engine!D$2:D$41=TRUE, ROW(Engine!C$2:C$41)-ROW(Engine!C$2)+1), ROW(33:33))), \"\")","v":""}]
[null,null,null,null,null,null,null,null,null,null,null,{"$f":"IFERROR(INDEX(Engine!C$2:C$41, SMALL(IF(Engine!D$2:D$41=TRUE, ROW(Engine!C$2:C$41)-ROW(Engine!C$2)+1), ROW(34:34))), \"\")","v":""}]
[null,null,null,null,null,null,null,null,null,null,null,{"$f":"IFERROR(INDEX(Engine!C$2:C$41, SMALL(IF(Engine!D$2:D$41=TRUE, ROW(Engine!C$2:C$41)-ROW(Engine!C$2)+1), ROW(35:35))), \"\")","v":""}]
[null,null,null,null,null,null,null,null,null,null,null,{"$f":"IFERROR(INDEX(Engine!C$2:C$41, SMALL(IF(Engine!D$2:D$41=TRUE, ROW(Engine!C$2:C$41)-ROW(Engine!C$2)+1), ROW(36:36))), \"\")","v":""}]
[null,null,null,null,null,null,null,null,null,null,null,{"$f":"IFERROR(INDEX(Engine!C$2:C$41, SMALL(IF(Engine!D$2:D$41=TRUE, ROW(Engine!C$2:C$41)-ROW(Engine!C$2)+1), ROW(37:37))), \"\")","v":""}]
[null,null,null,null,null,null,null,null,null,null,null,{"$f":"IFERROR(INDEX(Engine!C$2:C$41, SMALL(IF(Engine!D$2:D$41=TRUE, ROW(Engine!C$2:C$41)-ROW(Engine!C$2)+1), ROW(38:38))), \"\")","v":""}]
[null,null,null,null,null,null,null,null,null,null,null,{"$f":"IFERROR(INDEX(Engine!C$2:C$41, SMALL(IF(Engine!D$2:D$41=TRUE, ROW(Engine!C$2:C$41)-ROW(Engine!C$2)+1), ROW(39:39))), \"\")","v":""}]
[null,null,null,null,null,null,null,null,null,null,null,{"$f":"IFERROR(INDEX(Engine!C$2:C$41, SMALL(IF(Engine!D$2:D$41=TRUE, ROW(Engine!C$2:C$41)-ROW(Engine!C$2)+1), ROW(40:40))), \"\")","v":""}]

{"sheet":"1 - Eligibility criteria","index":1,"n_rows":144,"n_cols":8,"rows_kept":144,"cut":false,"hidden":true,"merged":[[137,3,137,5],[139,3,139,5],[141,3,141,5],[143,3,143,5],[125,3,125,5],[127,3,127,5],[129,3,129,5],[135,3,135,5],[121,3,121,5],[123,3,123,5],[101,3,101,5],[107,3,107,5],[109,3,109,5],[111,3,111,5],[65,3,65,5],[67,3,67,5],[69,3,69,5],[71,3,71,5],[73,3,73,5],[59,3,59,5],[41,3,41,5],[43,3,43,5],[45,3,45,5],[51,3,51,5],[2,2,2,8],[5,3,5,7],[9,3,9,5],[11,3,11,5],[13,3,13,5],[15,3,15,5],[21,5,21,7],[35,5,35,7],[49,5,49,7],[63,5,63,7],[29,3,29,5],[31,3,31,5],[37,3,37,5],[39,3,39,5],[17,3,17,5],[23,3,23,5],[25,3,25,5],[27,3,27,5],[53,3,53,5],[55,3,55,5],[57,3,57,5],[77,5,77,7],[91,5,91,7],[105,5,105,7],[119,5,119,7],[133,5,133,7],[93,3,93,5],[95,3,95,5],[97,3,97,5],[99,3,99,5],[79,3,79,5],[81,3,81,5],[83,3,83,5],[85,3,85,5],[87,3,87,5],[113,3,113,5],[115,3,115,5]]}
[]
[]
[null,null,"1 - ELIGIBILITY CRITERIA"]
[]
[null,null,1]
[null,null,null,"You indicated that you are part of a consortium but will not be using subcontractors. Please provide the legal entity names of the consortium leader and all consortium members, tick the box below and embed the necessary PDF as a single document in the designated field to confirm that all eligibility criteria have been met. Additionally, if you need guidance on how to embed the PDF, click the 'Help' button."]
[]
[null,null,null,"Legal name of Candidate"]
[]
[null,null,null,"Forms to fill and sign",null,null,null,"Embed Signed Form"]
[]
[null,null,null,"Tick this box to confirm that  you signed the : Declaration on Eligibility Annex 3 Section 1 "]
[]
[null,null,null,"Tick this box to confirm that  you signed the : Declaration of Non-Collusion Annex 3 Section 2 "]
[]
[null,null,null,"Tick this box to confirm that  you signed the : Cover Certification form Annex 3 Section 3.1 "]
[]
[null,null,null,"Tick this box to confirm that  you signed the : Consortium declaration Annex 3 Section 3.2 "]
[]
[]
[null,null,2]
[null,null,null,"Legal name of Consortium Member"]
[]
[null,null,null,"Form(s) to fill and sign",null,null,null,"Embed Signed Form"]
[]
[null,null,null,"Tick this box to confirm that  you signed the : Declaration on Eligibility Annex 3 Section 1 "]
[]
[null,null,null,"Tick this box to confirm that  you signed the : Declaration of Non-Collusion Annex 3 Section 2 ?"]
[]
[null,null,null,"Tick this box to confirm that  you signed the : Consortium declaration Annex 3 Section 3.2 ?"]
[]
[null,null,null,"Tick this box to confirm that  you signed the : Subcontractor commitment letter Annex 3 Section 3.3 ?"]
[]
[]
[null,null,3]
[null,null,null,"Legal name of Sub - Contractor"]
[]
[null,null,null,"Form(s) to fill and sign",null,null,null,"Embed Signed Form"]
[]
[null,null,null,"Tick this box to confirm that  you signed the : Declaration on Eligibility Annex 3 Section 1 "]
[]
[null,null,null,"Tick this box to confirm that  you signed the : Declaration of Non-Collusion Annex 3 Section 2 ?"]
[]
[null,null,null,"Tick this box to confirm that  you signed the : Consortium declaration Annex 3 Section 3.2 ?"]
[]
[null,null,null,"Tick this box to confirm that  you signed the : Subcontractor commitment letter Annex 3 Section 3.3 ?"]
[]
[]
[null,null,4]
[null,null,null,"Legal name of Sub - Contractor"]
[]
[null,null,null,"Form(s) to fill and sign",null,null,null,"Embed Signed Form"]
[]
[null,null,null,"Tick this box to confirm that  you signed the : Declaration on Eligibility Annex 3 Section 1 "]
[]
[null,null,null,"Tick this box to confirm that  you signed the : Declaration of Non-Collusion Annex 3 Section 2 ?"]
[]
[null,null,null,"Tick this box to confirm that  you signed the : Consortium declaration Annex 3 Section 3.2 ?"]
[]
[null,null,null,"Tick this box to confirm that  you signed the : Subcontractor commitment letter Annex 3 Section 3.3 ?"]
[]
[]
[null,null,5]
[null,null,null,"Legal name of Consortium Member"]
[]
[null,null,null,"Form(s) to fill and sign",null,null,null,"Embed Signed Form"]
[]
[null,null,null,"Tick this box to confirm that  you signed the : Declaration on Eligibility Annex 3 Section 1 "]
[]
[null,null,null,"Tick this box to confirm that  you signed the : Declaration of Non-Collusion Annex 3 Section 2 ?"]
[]
[null,null,null,"Tick this box to confirm that  you signed the : Consortium declaration Annex 3 Section 3.2 ?"]
[]
[null,null,null,"Tick this box to confirm that  you signed the : Subcontractor commitment letter Annex 3 Section 3.3 ?"]
[]
[]
[null,null,6]
[null,null,null,"Legal name of Consortium Member"]
[]
[null,null,null,"Form(s) to fill and sign",null,null,null,"Embed Signed Form"]
[]
[null,null,null,"Tick this box to confirm that  you signed the : Declaration on Eligibility Annex 3 Section 1 "]
[]
[null,null,null,"Tick this box to confirm that  you signed the : Declaration of Non-Collusion Annex 3 Section 2 ?"]
[]
[null,null,null,"Tick this box to confirm that  you signed the : Consortium declaration Annex 3 Section 3.2 ?"]
[]
[null,null,null,"Tick this box to confirm that  you signed the : Subcontractor commitment letter Annex 3 Section 3.3 ?"]
[]
[]
[null,null,7]
[null,null,null,"Legal name of Sub - Contractor"]
[]
[null,null,null,"Form(s) to fill and sign",null,null,null,"Embed Signed Form"]
[]
[null,null,null,"Tick this box to confirm that  you signed the : Declaration on Eligibility Annex 3 Section 1 "]
[]
[null,null,null,"Tick this box to confirm that  you signed the : Declaration of Non-Collusion Annex 3 Section 2 ?"]
[]
[null,null,null,"Tick this box to confirm that  you signed the : Consortium declaration Annex 3 Section 3.2 ?"]
[]
[null,null,null,"Tick this box to confirm that  you signed the : Subcontractor commitment letter Annex 3 Section 3.3 ?"]
[]
[]
[null,null,8]
[null,null,null,"Legal name of Sub - Contractor"]
[]
[null,null,null,"Form(s) to fill and sign",null,null,null,"Embed Signed Form"]
[]
[null,null,null,"Tick this box to confirm that  you signed the : Declaration on Eligibility Annex 3 Section 1 "]
[]
[null,null,null,"Tick this box to confirm that  you signed the : Declaration of Non-Collusion Annex 3 Section 2 ?"]
[]
[null,null,null,"Tick this box to confirm that  you signed the : Consortium declaration Annex 3 Section 3.2 ?"]
[]
[null,null,null,"Tick this box to confirm that  you signed the : Subcontractor commitment letter Annex 3 Section 3.3 ?"]
[]
[]
[null,null,9]
[null,null,null,"Legal name of Sub - Contractor"]
[]
[null,null,null,"Form(s) to fill and sign",null,null,null,"Embed Signed Form"]
[]
[null,null,null,"Tick this box to confirm that  you signed the : Declaration on Eligibility Annex 3 Section 1 "]
[]
[null,null,null,"Tick this box to confirm that  you signed the : Declaration of Non-Collusion Annex 3 Section 2 ?"]
[]
[null,null,null,"Tick this box to confirm that  you signed the : Consortium declaration Annex 3 Section 3.2 ?"]
[]
[null,null,null,"Tick this box to confirm that  you signed the : Subcontractor commitment letter Annex 3 Section 3.3 ?"]
[]
[]
[null,null,10]
[null,null,null,"Legal name of Sub - Contractor"]
[]
[null,null,null,"Form(s) to fill and sign",null,null,null,"Embed Signed Form"]
[]
[null,null,null,"Tick this box to confirm that  you signed the : Declaration on Eligibility Annex 3 Section 1 "]
[]
[null,null,null,"Tick this box to confirm that  you signed the : Declaration of Non-Collusion Annex 3 Section 2 ?"]
[]
[null,null,null,"Tick this box to confirm that  you signed the : Consortium declaration Annex 3 Section 3.2 ?"]
[]
[null,null,null,"Tick this box to confirm that  you signed the : Subcontractor commitment letter Annex 3 Section 3.3 ?"]

{"sheet":"2 - Financial standing","index":2,"n_rows":22,"n_cols":8,"rows_kept":22,"cut":false,"hidden":true,"merged":[[14,2,14,8],[2,2,2,8],[5,3,5,7],[7,3,7,5],[9,3,9,5],[11,3,11,5],[13,3,13,7],[7,7,9,7]]}
[]
[]
[null,null,"2 - ECONOMIC AND FINANCIAL STANDING"]
[]
[]
[null,null,null,"The selection criteria apply to the Candidate as a whole, i.e. a consolidated assessment of the combined capacities of all involved legal entities will be carried out. Tick the box below and embed Annex 5 Commercial Response Template as a single document in the designated field to confirm economic and financial standing criteria have been met."]
[]
[null,null,null,"Requirements",null,null,null,"Embed evidence"]
[]
[null,null,null,"Tick this box to confirm annual revenue in excess of €500,000 for the last two financial years"]
[]
[null,null,null,"Tick this box to confirm completion of the commercial response template for each discipline bid for and embed the completed Annex 5 Commercial response Template"]
[]
[]
[null,null,"OVERVIEW OF ALL DISCIPLINES BID FOR"]
[]
[]
[null,null,null,"01-Financial instruments",null,"02-Market Infrastructure​",null,"03-Capital Markets functions​"]
[]
[null,null,null,"04-Risk management​",null,"05-IT Financial Systems​",null,"14-Communications​"]
[]
[null,null,null,"15-Human resources and organisation",null,"27-Information security​"]

{"sheet":"3 - Technical ability","index":3,"n_rows":1006,"n_cols":10,"rows_kept":1006,"cut":false,"hidden":true,"merged":[[21,5,21,9],[29,7,29,9],[31,5,31,9],[33,5,33,9],[35,5,35,9],[41,5,41,9],[2,4,2,10],[5,5,5,9],[9,7,9,9],[11,5,11,9],[13,5,13,9],[15,5,15,9],[7,5,7,9],[71,5,71,9],[73,5,73,9],[75,5,75,9],[81,5,81,9],[89,7,89,9],[91,5,91,9],[49,7,49,9],[51,5,51,9],[53,5,53,9],[55,5,55,9],[61,5,61,9],[69,7,69,9],[115,5,115,9],[121,5,121,9],[129,7,129,9],[131,5,131,9],[133,5,133,9],[135,5,135,9],[93,5,93,9],[95,5,95,9],[101,5,101,9],[109,7,109,9],[111,5,111,9],[113,5,113,9],[169,7,169,9],[171,5,171,9],[173,5,173,9],[175,5,175,9],[181,5,181,9],[189,7,189,9],[141,5,141,9],[149,7,149,9],[151,5,151,9],[153,5,153,9],[155,5,155,9],[161,5,161,9],[213,5,213,9],[215,5,215,9],[221,5,221,9],[229,7,229,9],[231,5,231,9],[233,5,233,9],[191,5,191,9],[193,5,193,9],[195,5,195,9],[201,5,201,9],[209,7,209,9],[211,5,211,9],[261,5,261,9],[269,7,269,9],[271,5,271,9],[273,5,273,9],[275,5,275,9],[281,5,281,9],[235,5,235,9],[241,5,241,9],[249,7,249,9],[251,5,251,9],[253,5,253,9],[255,5,255,9],[311,5,311,9],[313,5,313,9],[315,5,315,9],[321,5,321,9],[329,7,329,9],[331,5,331,9],[289,7,289,9],[291,5,291,9],[293,5,293,9],[295,5,295,9],[301,5,301,9],[309,7,309,9],[355,5,355,9],[361,5,361,9],[369,7,369,9],[371,5,371,9],[373,5,373,9],[375,5,375,9],[333,5,333,9],[335,5,335,9],[341,5,341,9],[349,7,349,9],[351,5,351,9],[353,5,353,9],[409,7,409,9],[411,5,411,9],[413,5,413,9],[415,5,415,9],[421,5,421,9],[429,7,429,9],[381,5,381,9],[389,7,389,9],[391,5,391,9],[393,5,393,9],[395,5,395,9],[401,5,401,9],[453,5,453,9],[455,5,455,9],[461,5,461,9],[469,7,469,9],[471,5,471,9],[473,5,473,9],[431,5,431,9],[433,5,433,9],[435,5,435,9],[441,5,441,9],[449,7,449,9],[451,5,451,9],[501,5,501,9],[509,7,509,9],[511,5,511,9],[513,5,513,9],[515,5,515,9],[521,5,521,9],[475,5,475,9],[481,5,481,9],[489,7,489,9],[491,5,491,9],[493,5,493,9],[495,5,495,9],[551,5,551,9],[553,5,553,9],[555,5,555,9],[561,5,561,9],[569,7,569,9],[571,5,571,9],[529,7,529,9],[531,5,531,9],[533,5,533,9],[535,5,535,9],[541,5,541,9],[549,7,549,9],[595,5,595,9],[601,5,601,9],[609,7,609,9],[611,5,611,9],[613,5,613,9],[615,5,615,9],[573,5,573,9],[575,5,575,9],[581,5,581,9],[589,7,589,9],[591,5,591,9],[593,5,593,9],[649,7,649,9],[651,5,651,9],[653,5,653,9],[655,5,655,9],[661,5,661,9],[669,7,669,9],[621,5,621,9],[629,7,629,9],[631,5,631,9],[633,5,633,9],[635,5,635,9],[641,5,641,9],[693,5,693,9],[695,5,695,9],[701,5,701,9],[709,7,709,9],[711,5,711,9],[713,5,713,9],[671,5,671,9],[673,5,673,9],[675,5,675,9],[681,5,681,9],[689,7,689,9],[691,5,691,9],[741,5,741,9],[749,7,749,9],[751,5,751,9],[753,5,753,9],[755,5,755,9],[761,5,761,9],[715,5,715,9],[721,5,721,9],[729,7,729,9],[731,5,731,9],[733,5,733,9],[735,5,735,9],[791,5,791,9],[793,5,793,9],[795,5,795,9],[801,5,801,9],[809,7,809,9],[811,5,811,9],[769,7,769,9],[771,5,771,9],[773,5,773,9],[775,5,775,9],[781,5,781,9],[789,7,789,9],[835,5,835,9],[841,5,841,9],[849,7,849,9],[851,5,851,9],[853,5,853,9],[855,5,855,9],[813,5,813,9],[815,5,815,9],[821,5,821,9],[829,7,829,9],[831,5,831,9],[833,5,833,9],[889,7,889,9],[891,5,891,9],[893,5,893,9],[895,5,895,9],[901,5,901,9],[909,7,909,9],[861,5,861,9],[869,7,869,9],[871,5,871,9],[873,5,873,9],[875,5,875,9],[881,5,881,9],[955,5,955,9],[961,5,961,9],[933,5,933,9],[935,5,935,9],[941,5,941,9],[949,7,949,9],[951,5,951,9],[953,5,953,9],[911,5,911,9],[913,5,913,9],[915,5,915,9],[921,5,921,9],[929,7,929,9],[931,5,931,9],[1001,5,1001,9],[969,7,969,9],[971,5,971,9],[973,5,973,9],[975,5,975,9],[981,5,981,9],[989,7,989,9],[995,5,995,9],[991,5,991,9],[993,5,993,9]]}
[]
[]
[null,null,null,null,"3 & 4 - TECHNICAL AND PROFESSIONAL ABILITY"]
[]
[]
[null,null,null,null,null,"You are required to confirm that you meet the minimum requirements listed in section 4 of the ToR. \nAdditionally, listed below are all the disciplines you intend to bid for. You are required to provide three examples of contracts or projects completed prior to the submission of this application, each specifically related to the respective discipline. The examples must be directly relevant to the discipline in question.\nAn example may be used across multiple disciplines, provided it is applicable to each. However, the example must be fully detailed under each discipline, without referencing descriptions from other sections. (i.e. you can copy/paste the same wording used in another discipline if relevant, but you cannot type e.g. ‘refer to example 1 from Discipline X’)."]
[]
[null,null,null,null,null,"Tick this box to confirm that you have access to and will only propose consultants meeting the minimum requirements listed in section 4 of the ToR."]
[null,null,null,null,1]
[null,null,null,null,null,"DISCIPLE NAME:",null,"01-Financial instruments"]
[]
[null,null,null,null,null,"Tick this box to confirm that the examples of project/contract you will provide below in the \"Scope Overview\", were completed in the last 3 years prior to the submission deadline."]
[]
[null,null,null,null,null,"Tick this box Confirm that the examples of project/contract you will provide below in the \"Scope Overview\", were delivered in English."]
[]
[null,null,null,null,null,"Scope Overview – Summarize the Scope of Each Relevant Contract or Project"]
[]
[null,null,null,null,null,"EXAMPLE 1",null,"EXAMPLE 2",null,"EXAMPLE 3"]
[]
[]
[]
[null,null,null,null,null,"End Dates - Enter the End Dates for Each Example Listed Above. (DD/MM/YYYY)"]
[]
[null,null,null,"START DATE"]
[]
[null,null,null,"END DATE"]
[]
[]
[null,null,null,null,2]
[null,null,null,null,null,"DISCIPLE NAME:",null,"02-Market Infrastructure​"]
[]
[null,null,null,null,null,"Tick this box to confirm that the examples of project/contract you will provide below in the \"Scope Overview\", were completed in the last 3 years prior to the submission deadline."]
[]
[null,null,null,null,null,"Tick this box Confirm that the examples of project/contract you will provide below in the \"Scope Overview\", were delivered in English."]
[]
[null,null,null,null,null,"Scope Overview – Summarize the Scope of Each Relevant Contract or Project"]
[]
[null,null,null,null,null,"EXAMPLE 1",null,"EXAMPLE 2",null,"EXAMPLE 3"]
[]
[]
[]
[null,null,null,null,null,"End Dates - Enter the End Dates for Each Example Listed Above. (DD/MM/YYYY)"]
[]
[null,null,null,"START DATE"]
[]
[null,null,null,"END DATE"]
[]
[]
[null,null,null,null,3]
[null,null,null,null,null,"DISCIPLE NAME:",null,"03-Capital Markets functions​"]
[]
[null,null,null,null,null,"Tick this box to confirm that the examples of project/contract you will provide below in the \"Scope Overview\", were completed in the last 3 years prior to the submission deadline."]
[]
[null,null,null,null,null,"Tick this box Confirm that the examples of project/contract you will provide below in the \"Scope Overview\", were delivered in English."]
[]
[null,null,null,null,null,"Scope Overview – Summarize the Scope of Each Relevant Contract or Project"]
[]
[null,null,null,null,null,"EXAMPLE 1",null,"EXAMPLE 2",null,"EXAMPLE 3"]
[]
[]
[]
[null,null,null,null,null,"End Dates - Enter the End Dates for Each Example Listed Above. (DD/MM/YYYY)"]
[]
[null,null,null,"START DATE"]
[]
[null,null,null,"END DATE"]
[]
[]
[null,null,null,null,4]
[null,null,null,null,null,"DISCIPLE NAME:",null,"04-Risk management​"]
[]
[null,null,null,null,null,"Tick this box to confirm that the examples of project/contract you will provide below in the \"Scope Overview\", were completed in the last 3 years prior to the submission deadline."]
[]
[null,null,null,null,null,"Tick this box Confirm that the examples of project/contract you will provide below in the \"Scope Overview\", were delivered in English."]
[]
[null,null,null,null,null,"Scope Overview – Summarize the Scope of Each Relevant Contract or Project"]
[]
[null,null,null,null,null,"EXAMPLE 1",null,"EXAMPLE 2",null,"EXAMPLE 3"]
[]
[]
[]
[null,null,null,null,null,"End Dates - Enter the End Dates for Each Example Listed Above. (DD/MM/YYYY)"]
[]
[null,null,null,"START DATE"]
[]
[null,null,null,"END DATE"]
[]
[]
[null,null,null,null,5]
[null,null,null,null,null,"DISCIPLE NAME:",null,"05-IT Financial Systems​"]
[]
[null,null,null,null,null,"Tick this box to confirm that the examples of project/contract you will provide below in the \"Scope Overview\", were completed in the last 3 years prior to the submission deadline."]
[]
[null,null,null,null,null,"Tick this box Confirm that the examples of project/contract you will provide below in the \"Scope Overview\", were delivered in English."]
[]
[null,null,null,null,null,"Scope Overview – Summarize the Scope of Each Relevant Contract or Project"]
[]
[null,null,null,null,null,"EXAMPLE 1",null,"EXAMPLE 2",null,"EXAMPLE 3"]
[]
[]
[]
[null,null,null,null,null,"End Dates - Enter the End Dates for Each Example Listed Above. (DD/MM/YYYY)"]
[]
[null,null,null,"START DATE"]
[]
[null,null,null,"END DATE"]
[]
[]
[null,null,null,null,6]
[null,null,null,null,null,"DISCIPLE NAME:",null,"14-Communications​"]
[]
[null,null,null,null,null,"Tick this box to confirm that the examples of project/contract you will provide below in the \"Scope Overview\", were completed in the last 3 years prior to the submission deadline."]
[]
[null,null,null,null,null,"Tick this box Confirm that the examples of project/contract you will provide below in the \"Scope Overview\", were delivered in English."]
[]
[null,null,null,null,null,"Scope Overview – Summarize the Scope of Each Relevant Contract or Project"]
[]
[null,null,null,null,null,"EXAMPLE 1",null,"EXAMPLE 2",null,"EXAMPLE 3"]
[]
[]
[]
[null,null,null,null,null,"End Dates - Enter the End Dates for Each Example Listed Above. (DD/MM/YYYY)"]
[]
[null,null,null,"START DATE"]
[]
[null,null,null,"END DATE"]
[]
[]
[null,null,null,null,7]
[null,null,null,null,null,"DISCIPLE NAME:",null,"15-Human resources and organisation"]
[]
[null,null,null,null,null,"Tick this box to confirm that the examples of project/contract you will provide below in the \"Scope Overview\", were completed in the last 3 years prior to the submission deadline."]
[]
[null,null,null,null,null,"Tick this box Confirm that the examples of project/contract you will provide below in the \"Scope Overview\", were delivered in English."]
[]
[null,null,null,null,null,"Scope Overview – Summarize the Scope of Each Relevant Contract or Project"]
[]
[null,null,null,null,null,"EXAMPLE 1",null,"EXAMPLE 2",null,"EXAMPLE 3"]
[]
[]
[]
[null,null,null,null,null,"End Dates - Enter the End Dates for Each Example Listed Above. (DD/MM/YYYY)"]
[]
[null,null,null,"START DATE"]
[]
[null,null,null,"END DATE"]
[]
[]
[null,null,null,null,8]
[null,null,null,null,null,"DISCIPLE NAME:",null,"27-Information security​"]
[]
[null,null,null,null,null,"Tick this box to confirm that the examples of project/contract you will provide below in the \"Scope Overview\", were completed in the last 3 years prior to the submission deadline."]
[]
[null,null,null,null,null,"Tick this box Confirm that the examples of project/contract you will provide below in the \"Scope Overview\", were delivered in English."]
[]
[null,null,null,null,null,"Scope Overview – Summarize the Scope of Each Relevant Contract or Project"]
[]
[null,null,null,null,null,"EXAMPLE 1",null,"EXAMPLE 2",null,"EXAMPLE 3"]
[]
[]
[]
[null,null,null,null,null,"End Dates - Enter the End Dates for Each Example Listed Above. (DD/MM/YYYY)"]
[]
[null,null,null,"START DATE"]
[]
[null,null,null,"END DATE"]
[]
[]
[null,null,null,null,9]
[null,null,null,null,null,"DISCIPLE NAME:"]
[]
[null,null,null,null,null,"Tick this box to confirm that the examples of project/contract you will provide below in the \"Scope Overview\", were completed in the last 3 years prior to the submission deadline."]
[]
[null,null,null,null,null,"Tick this box Confirm that the examples of project/contract you will provide below in the \"Scope Overview\", were delivered in English."]
[]
[null,null,null,null,null,"Scope Overview – Summarize the Scope of Each Relevant Contract or Project"]
[]
[null,null,null,null,null,"EXAMPLE 1",null,"EXAMPLE 2",null,"EXAMPLE 3"]
[]
[]
[]
[null,null,null,null,null,"End Dates - Enter the End Dates for Each Example Listed Above. (DD/MM/YYYY)"]
[]
[null,null,null,"START DATE"]
[]
[null,null,null,"END DATE"]
[]
[]
[null,null,null,null,10]
[null,null,null,null,null,"DISCIPLE NAME:"]
[]
[null,null,null,null,null,"Tick this box to confirm that the examples of project/contract you will provide below in the \"Scope Overview\", were completed in the last 3 years prior to the submission deadline."]
[]
[null,null,null,null,null,"Tick this box Confirm that the examples of project/contract you will provide below in the \"Scope Overview\", were delivered in English."]
[]
[null,null,null,null,null,"Scope Overview – Summarize the Scope of Each Relevant Contract or Project"]
[]
[null,null,null,null,null,"EXAMPLE 1",null,"EXAMPLE 2",null,"EXAMPLE 3"]
[]
[]
[]
[null,null,null,null,null,"End Dates - Enter the End Dates for Each Example Listed Above. (DD/MM/YYYY)"]
[]
[null,null,null,"START DATE"]
[]
[null,null,null,"END DATE"]
[]
[]
[null,null,null,null,11]
[null,null,null,null,null,"DISCIPLE NAME:"]
[]
[null,null,null,null,null,"Tick this box to confirm that the examples of project/contract you will provide below in the \"Scope Overview\", were completed in the last 3 years prior to the submission deadline."]
[]
[null,null,null,null,null,"Tick this box Confirm that the examples of project/contract you will provide below in the \"Scope Overview\", were delivered in English."]
[]
[null,null,null,null,null,"Scope Overview – Summarize the Scope of Each Relevant Contract or Project"]
[]
[null,null,null,null,null,"EXAMPLE 1",null,"EXAMPLE 2",null,"EXAMPLE 3"]
[]
[]
[]
[null,null,null,null,null,"End Dates - Enter the End Dates for Each Example Listed Above. (DD/MM/YYYY)"]
[]
[null,null,null,"START DATE"]
[]
[null,null,null,"END DATE"]
[]
[]
[null,null,null,null,12]
[null,null,null,null,null,"DISCIPLE NAME:"]
[]
[null,null,null,null,null,"Tick this box to confirm that the examples of project/contract you will provide below in the \"Scope Overview\", were completed in the last 3 years prior to the submission deadline."]
[]
[null,null,null,null,null,"Tick this box Confirm that the examples of project/contract you will provide below in the \"Scope Overview\", were delivered in English."]
[]
[null,null,null,null,null,"Scope Overview – Summarize the Scope of Each Relevant Contract or Project"]
[]
[null,null,null,null,null,"EXAMPLE 1",null,"EXAMPLE 2",null,"EXAMPLE 3"]
[]
[]
[]
[null,null,null,null,null,"End Dates - Enter the End Dates for Each Example Listed Above. (DD/MM/YYYY)"]
[]
[null,null,null,"START DATE"]
[]
[null,null,null,"END DATE"]
[]
[]
[null,null,null,null,13]
[null,null,null,null,null,"DISCIPLE NAME:"]
[]
[null,null,null,null,null,"Tick this box to confirm that the examples of project/contract you will provide below in the \"Scope Overview\", were completed in the last 3 years prior to the submission deadline."]
[]
[null,null,null,null,null,"Tick this box Confirm that the examples of project/contract you will provide below in the \"Scope Overview\", were delivered in English."]
[]
[null,null,null,null,null,"Scope Overview – Summarize the Scope of Each Relevant Contract or Project"]
[]
[null,null,null,null,null,"EXAMPLE 1",null,"EXAMPLE 2",null,"EXAMPLE 3"]
[]
[]
[]
[null,null,null,null,null,"End Dates - Enter the End Dates for Each Example Listed Above. (DD/MM/YYYY)"]
[]
[null,null,null,"START DATE"]
[]
[null,null,null,"END DATE"]
[]
[]
[null,null,null,null,14]
[null,null,null,null,null,"DISCIPLE NAME:"]
[]
[null,null,null,null,null,"Tick this box to confirm that the examples of project/contract you will provide below in the \"Scope Overview\", were completed in the last 3 years prior to the submission deadline."]
[]
[null,null,null,null,null,"Tick this box Confirm that the examples of project/contract you will provide below in the \"Scope Overview\", were delivered in English."]
[]
[null,null,null,null,null,"Scope Overview – Summarize the Scope of Each Relevant Contract or Project"]
[]
[null,null,null,null,null,"EXAMPLE 1",null,"EXAMPLE 2",null,"EXAMPLE 3"]
[]
[]
[]
[null,null,null,null,null,"End Dates - Enter the End Dates for Each Example Listed Above. (DD/MM/YYYY)"]
[]
[null,null,null,"START DATE"]
[]
[null,null,null,"END DATE"]
[]
[]
[null,null,null,null,15]
[null,null,null,null,null,"DISCIPLE NAME:"]
[]
[null,null,null,null,null,"Tick this box to confirm that the examples of project/contract you will provide below in the \"Scope Overview\", were completed in the last 3 years prior to the submission deadline."]
[]
[null,null,null,null,null,"Tick this box Confirm that the examples of project/contract you will provide below in the \"Scope Overview\", were delivered in English."]
[]
[null,null,null,null,null,"Scope Overview – Summarize the Scope of Each Relevant Contract or Project"]
[]
[null,null,null,null,null,"EXAMPLE 1",null,"EXAMPLE 2",null,"EXAMPLE 3"]
[]
[]
[]
[null,null,null,null,null,"End Dates - Enter the End Dates for Each Example Listed Above. (DD/MM/YYYY)"]
[]
[null,null,null,"START DATE"]
[]
[null,null,null,"END DATE"]
[]
[]
[null,null,null,null,16]
[null,null,null,null,null,"DISCIPLE NAME:"]
[]
[null,null,null,null,null,"Tick this box to confirm that the examples of project/contract you will provide below in the \"Scope Overview\", were completed in the last 3 years prior to the submission deadline."]
[]
[null,null,null,null,null,"Tick this box Confirm that the examples of project/contract you will provide below in the \"Scope Overview\", were delivered in English."]
[]
[null,null,null,null,null,"Scope Overview – Summarize the Scope of Each Relevant Contract or Project"]
[]
[null,null,null,null,null,"EXAMPLE 1",null,"EXAMPLE 2",null,"EXAMPLE 3"]
[]
[]
[]
[null,null,null,null,null,"End Dates - Enter the End Dates for Each Example Listed Above. (DD/MM/YYYY)"]
[]
[null,null,null,"START DATE"]
[]
[null,null,null,"END DATE"]
[]
[]
[null,null,null,null,17]
[null,null,null,null,null,"DISCIPLE NAME:"]
[]
[null,null,null,null,null,"Tick this box to confirm that the examples of project/contract you will provide below in the \"Scope Overview\", were completed in the last 3 years prior to the submission deadline."]
[]
[null,null,null,null,null,"Tick this box Confirm that the examples of project/contract you will provide below in the \"Scope Overview\", were delivered in English."]
[]
[null,null,null,null,null,"Scope Overview – Summarize the Scope of Each Relevant Contract or Project"]
[]
[null,null,null,null,null,"EXAMPLE 1",null,"EXAMPLE 2",null,"EXAMPLE 3"]
[]
[]
[]
[null,null,null,null,null,"End Dates - Enter the End Dates for Each Example Listed Above. (DD/MM/YYYY)"]
[]
[null,null,null,"START DATE"]
[]
[null,null,null,"END DATE"]
[]
[]
[null,null,null,null,18]
[null,null,null,null,null,"DISCIPLE NAME:"]
[]
[null,null,null,null,null,"Tick this box to confirm that the examples of project/contract you will provide below in the \"Scope Overview\", were completed in the last 3 years prior to the submission deadline."]
[]
[null,null,null,null,null,"Tick this box Confirm that the examples of project/contract you will provide below in the \"Scope Overview\", were delivered in English."]
[]
[null,null,null,null,null,"Scope Overview – Summarize the Scope of Each Relevant Contract or Project"]
[]
[null,null,null,null,null,"EXAMPLE 1",null,"EXAMPLE 2",null,"EXAMPLE 3"]
[]
[]
[]
[null,null,null,null,null,"End Dates - Enter the End Dates for Each Example Listed Above. (DD/MM/YYYY)"]
[]
[null,null,null,"START DATE"]
[]
[null,null,null,"END DATE"]
[]
[]
[null,null,null,null,19]
[null,null,null,null,null,"DISCIPLE NAME:"]
[]
[null,null,null,null,null,"Tick this box to confirm that the examples of project/contract you will provide below in the \"Scope Overview\", were completed in the last 3 years prior to the submission deadline."]
[]
[null,null,null,null,null,"Tick this box Confirm that the examples of project/contract you will provide below in the \"Scope Overview\", were delivered in English."]
[]
[null,null,null,null,null,"Scope Overview – Summarize the Scope of Each Relevant Contract or Project"]
[]
[null,null,null,null,null,"EXAMPLE 1",null,"EXAMPLE 2",null,"EXAMPLE 3"]
[]
[]
[]
[null,null,null,null,null,"End Dates - Enter the End Dates for Each Example Listed Above. (DD/MM/YYYY)"]
[]
[null,null,null,"START DATE"]
[]
[null,null,null,"END DATE"]
[]
[]
[null,null,null,null,20]
[null,null,null,null,null,"DISCIPLE NAME:"]
[]
[null,null,null,null,null,"Tick this box to confirm that the examples of project/contract you will provide below in the \"Scope Overview\", were completed in the last 3 years prior to the submission deadline."]
[]
[null,null,null,null,null,"Tick this box Confirm that the examples of project/contract you will provide below in the \"Scope Overview\", were delivered in English."]
[]
[null,null,null,null,null,"Scope Overview – Summarize the Scope of Each Relevant Contract or Project"]
[]
[null,null,null,null,null,"EXAMPLE 1",null,"EXAMPLE 2",null,"EXAMPLE 3"]
[]
[]
[]
[null,null,null,null,null,"End Dates - Enter the End Dates for Each Example Listed Above. (DD/MM/YYYY)"]
[]
[null,null,null,"START DATE"]
[]
[null,null,null,"END DATE"]
[]
[]
[null,null,null,null,21]
[null,null,null,null,null,"DISCIPLE NAME:"]
[]
[null,null,null,null,null,"Tick this box to confirm that the examples of project/contract you will provide below in the \"Scope Overview\", were completed in the last 3 years prior to the submission deadline."]
[]
[null,null,null,null,null,"Tick this box Confirm that the examples of project/contract you will provide below in the \"Scope Overview\", were delivered in English."]
[]
[null,null,null,null,null,"Scope Overview – Summarize the Scope of Each Relevant Contract or Project"]
[]
[null,null,null,null,null,"EXAMPLE 1",null,"EXAMPLE 2",null,"EXAMPLE 3"]
[]
[]
[]
[null,null,null,null,null,"End Dates - Enter the End Dates for Each Example Listed Above. (DD/MM/YYYY)"]
[]
[null,null,null,"START DATE"]
[]
[null,null,null,"END DATE"]
[]
[]
[null,null,null,null,22]
[null,null,null,null,null,"DISCIPLE NAME:"]
[]
[null,null,null,null,null,"Tick this box to confirm that the examples of project/contract you will provide below in the \"Scope Overview\", were completed in the last 3 years prior to the submission deadline."]
[]
[null,null,null,null,null,"Tick this box Confirm that the examples of project/contract you will provide below in the \"Scope Overview\", were delivered in English."]
[]
[null,null,null,null,null,"Scope Overview – Summarize the Scope of Each Relevant Contract or Project"]
[]
[null,null,null,null,null,"EXAMPLE 1",null,"EXAMPLE 2",null,"EXAMPLE 3"]
[]
[]
[]
[null,null,null,null,null,"End Dates - Enter the End Dates for Each Example Listed Above. (DD/MM/YYYY)"]
[]
[null,null,null,"START DATE"]
[]
[null,null,null,"END DATE"]
[]
[]
[null,null,null,null,23]
[null,null,null,null,null,"DISCIPLE NAME:"]
[]
[null,null,null,null,null,"Tick this box to confirm that the examples of project/contract you will provide below in the \"Scope Overview\", were completed in the last 3 years prior to the submission deadline."]
[]
[null,null,null,null,null,"Tick this box Confirm that the examples of project/contract you will provide below in the \"Scope Overview\", were delivered in English."]
[]
[null,null,null,null,null,"Scope Overview – Summarize the Scope of Each Relevant Contract or Project"]
[]
[null,null,null,null,null,"EXAMPLE 1",null,"EXAMPLE 2",null,"EXAMPLE 3"]
[]
[]
[]
[null,null,null,null,null,"End Dates - Enter the End Dates for Each Example Listed Above. (DD/MM/YYYY)"]
[]
[null,null,null,"START DATE"]
[]
[null,null,null,"END DATE"]
[]
[]
[null,null,null,null,24]
[null,null,null,null,null,"DISCIPLE NAME:"]
[]
[null,null,null,null,null,"Tick this box to confirm that the examples of project/contract you will provide below in the \"Scope Overview\", were completed in the last 3 years prior to the submission deadline."]
[]
[null,null,null,null,null,"Tick this box Confirm that the examples of project/contract you will provide below in the \"Scope Overview\", were delivered in English."]
[]
[null,null,null,null,null,"Scope Overview – Summarize the Scope of Each Relevant Contract or Project"]
[]
[null,null,null,null,null,"EXAMPLE 1",null,"EXAMPLE 2",null,"EXAMPLE 3"]
[]
[]
[]
[null,null,null,null,null,"End Dates - Enter the End Dates for Each Example Listed Above. (DD/MM/YYYY)"]
[]
[null,null,null,"START DATE"]
[]
[null,null,null,"END DATE"]
[]
[]
[null,null,null,null,25]
[null,null,null,null,null,"DISCIPLE NAME:"]
[]
[null,null,null,null,null,"Tick this box to confirm that the examples of project/contract you will provide below in the \"Scope Overview\", were completed in the last 3 years prior to the submission deadline."]
[]
[null,null,null,null,null,"Tick this box Confirm that the examples of project/contract you will provide below in the \"Scope Overview\", were delivered in English."]
[]
[null,null,null,null,null,"Scope Overview – Summarize the Scope of Each Relevant Contract or Project"]
[]
[null,null,null,null,null,"EXAMPLE 1",null,"EXAMPLE 2",null,"EXAMPLE 3"]
[]
[]
[]
[null,null,null,null,null,"End Dates - Enter the End Dates for Each Example Listed Above. (DD/MM/YYYY)"]
[]
[null,null,null,"START DATE"]
[]
[null,null,null,"END DATE"]
[]
[]
[null,null,null,null,26]
[null,null,null,null,null,"DISCIPLE NAME:"]
[]
[null,null,null,null,null,"Tick this box to confirm that the examples of project/contract you will provide below in the \"Scope Overview\", were completed in the last 3 years prior to the submission deadline."]
[]
[null,null,null,null,null,"Tick this box Confirm that the examples of project/contract you will provide below in the \"Scope Overview\", were delivered in English."]
[]
[null,null,null,null,null,"Scope Overview – Summarize the Scope of Each Relevant Contract or Project"]
[]
[null,null,null,null,null,"EXAMPLE 1",null,"EXAMPLE 2",null,"EXAMPLE 3"]
[]
[]
[]
[null,null,null,null,null,"End Dates - Enter the End Dates for Each Example Listed Above. (DD/MM/YYYY)"]
[]
[null,null,null,"START DATE"]
[]
[null,null,null,"END DATE"]
[]
[]
[null,null,null,null,27]
[null,null,null,null,null,"DISCIPLE NAME:"]
[]
[null,null,null,null,null,"Tick this box to confirm that the examples of project/contract you will provide below in the \"Scope Overview\", were completed in the last 3 years prior to the submission deadline."]
[]
[null,null,null,null,null,"Tick this box Confirm that the examples of project/contract you will provide below in the \"Scope Overview\", were delivered in English."]
[]
[null,null,null,null,null,"Scope Overview – Summarize the Scope of Each Relevant Contract or Project"]
[]
[null,null,null,null,null,"EXAMPLE 1",null,"EXAMPLE 2",null,"EXAMPLE 3"]
[]
[]
[]
[null,null,null,null,null,"End Dates - Enter the End Dates for Each Example Listed Above. (DD/MM/YYYY)"]
[]
[null,null,null,"START DATE"]
[]
[null,null,null,"END DATE"]
[]
[]
[null,null,null,null,28]
[null,null,null,null,null,"DISCIPLE NAME:"]
[]
[null,null,null,null,null,"Tick this box to confirm that the examples of project/contract you will provide below in the \"Scope Overview\", were completed in the last 3 years prior to the submission deadline."]
[]
[null,null,null,null,null,"Tick this box Confirm that the examples of project/contract you will provide below in the \"Scope Overview\", were delivered in English."]
[]
[null,null,null,null,null,"Scope Overview – Summarize the Scope of Each Relevant Contract or Project"]
[]
[null,null,null,null,null,"EXAMPLE 1",null,"EXAMPLE 2",null,"EXAMPLE 3"]
[]
[]
[]
[null,null,null,null,null,"End Dates - Enter the End Dates for Each Example Listed Above. (DD/MM/YYYY)"]
[]
[null,null,null,"START DATE"]
[]
[null,null,null,"END DATE"]
[]
[]
[null,null,null,null,29]
[null,null,null,null,null,"DISCIPLE NAME:"]
[]
[null,null,null,null,null,"Tick this box to confirm that the examples of project/contract you will provide below in the \"Scope Overview\", were completed in the last 3 years prior to the submission deadline."]
[]
[null,null,null,null,null,"Tick this box Confirm that the examples of project/contract you will provide below in the \"Scope Overview\", were delivered in English."]
[]
[null,null,null,null,null,"Scope Overview – Summarize the Scope of Each Relevant Contract or Project"]
[]
[null,null,null,null,null,"EXAMPLE 1",null,"EXAMPLE 2",null,"EXAMPLE 3"]
[]
[]
[]
[null,null,null,null,null,"End Dates - Enter the End Dates for Each Example Listed Above. (DD/MM/YYYY)"]
[]
[null,null,null,"START DATE"]
[]
[null,null,null,"END DATE"]
[]
[]
[null,null,null,null,30]
[null,null,null,null,null,"DISCIPLE NAME:"]
[]
[null,null,null,null,null,"Tick this box to confirm that the examples of project/contract you will provide below in the \"Scope Overview\", were completed in the last 3 years prior to the submission deadline."]
[]
[null,null,null,null,null,"Tick this box Confirm that the examples of project/contract you will provide below in the \"Scope Overview\", were delivered in English."]
[]
[null,null,null,null,null,"Scope Overview – Summarize the Scope of Each Relevant Contract or Project"]
[]
[null,null,null,null,null,"EXAMPLE 1",null,"EXAMPLE 2",null,"EXAMPLE 3"]
[]
[]
[]
[null,null,null,null,null,"End Dates - Enter the End Dates for Each Example Listed Above. (DD/MM/YYYY)"]
[]
[null,null,null,"START DATE"]
[]
[null,null,null,"END DATE"]
[]
[]
[null,null,null,null,31]
[null,null,null,null,null,"DISCIPLE NAME:"]
[]
[null,null,null,null,null,"Tick this box to confirm that the examples of project/contract you will provide below in the \"Scope Overview\", were completed in the last 3 years prior to the submission deadline."]
[]
[null,null,null,null,null,"Tick this box Confirm that the examples of project/contract you will provide below in the \"Scope Overview\", were delivered in English."]
[]
[null,null,null,null,null,"Scope Overview – Summarize the Scope of Each Relevant Contract or Project"]
[]
[null,null,null,null,null,"EXAMPLE 1",null,"EXAMPLE 2",null,"EXAMPLE 3"]
[]
[]
[]
[null,null,null,null,null,"End Dates - Enter the End Dates for Each Example Listed Above. (DD/MM/YYYY)"]
[]
[null,null,null,"START DATE"]
[]
[null,null,null,"END DATE"]
[]
[]
[null,null,null,null,32]
[null,null,null,null,null,"DISCIPLE NAME:"]
[]
[null,null,null,null,null,"Tick this box to confirm that the examples of project/contract you will provide below in the \"Scope Overview\", were completed in the last 3 years prior to the submission deadline."]
[]
[null,null,null,null,null,"Tick this box Confirm that the examples of project/contract you will provide below in the \"Scope Overview\", were delivered in English."]
[]
[null,null,null,null,null,"Scope Overview – Summarize the Scope of Each Relevant Contract or Project"]
[]
[null,null,null,null,null,"EXAMPLE 1",null,"EXAMPLE 2",null,"EXAMPLE 3"]
[]
[]
[]
[null,null,null,null,null,"End Dates - Enter the End Dates for Each Example Listed Above. (DD/MM/YYYY)"]
[]
[null,null,null,"START DATE"]
[]
[null,null,null,"END DATE"]
[]
[]
[null,null,null,null,33]
[null,null,null,null,null,"DISCIPLE NAME:"]
[]
[null,null,null,null,null,"Tick this box to confirm that the examples of project/contract you will provide below in the \"Scope Overview\", were completed in the last 3 years prior to the submission deadline."]
[]
[null,null,null,null,null,"Tick this box Confirm that the examples of project/contract you will provide below in the \"Scope Overview\", were delivered in English."]
[]
[null,null,null,null,null,"Scope Overview – Summarize the Scope of Each Relevant Contract or Project"]
[]
[null,null,null,null,null,"EXAMPLE 1",null,"EXAMPLE 2",null,"EXAMPLE 3"]
[]
[]
[]
[null,null,null,null,null,"End Dates - Enter the End Dates for Each Example Listed Above. (DD/MM/YYYY)"]
[]
[null,null,null,"START DATE"]
[]
[null,null,null,"END DATE"]
[]
[]
[null,null,null,null,34]
[null,null,null,null,null,"DISCIPLE NAME:"]
[]
[null,null,null,null,null,"Tick this box to confirm that the examples of project/contract you will provide below in the \"Scope Overview\", were completed in the last 3 years prior to the submission deadline."]
[]
[null,null,null,null,null,"Tick this box Confirm that the examples of project/contract you will provide below in the \"Scope Overview\", were delivered in English."]
[]
[null,null,null,null,null,"Scope Overview – Summarize the Scope of Each Relevant Contract or Project"]
[]
[null,null,null,null,null,"EXAMPLE 1",null,"EXAMPLE 2",null,"EXAMPLE 3"]
[]
[]
[]
[null,null,null,null,null,"End Dates - Enter the End Dates for Each Example Listed Above. (DD/MM/YYYY)"]
[]
[null,null,null,"START DATE"]
[]
[null,null,null,"END DATE"]
[]
[]
[null,null,null,null,35]
[null,null,null,null,null,"DISCIPLE NAME:"]
[]
[null,null,null,null,null,"Tick this box to confirm that the examples of project/contract you will provide below in the \"Scope Overview\", were completed in the last 3 years prior to the submission deadline."]
[]
[null,null,null,null,null,"Tick this box Confirm that the examples of project/contract you will provide below in the \"Scope Overview\", were delivered in English."]
[]
[null,null,null,null,null,"Scope Overview – Summarize the Scope of Each Relevant Contract or Project"]
[]
[null,null,null,null,null,"EXAMPLE 1",null,"EXAMPLE 2",null,"EXAMPLE 3"]
[]
[]
[]
[null,null,null,null,null,"End Dates - Enter the End Dates for Each Example Listed Above. (DD/MM/YYYY)"]
[]
[null,null,null,"START DATE"]
[]
[null,null,null,"END DATE"]
[]
[]
[null,null,null,null,36]
[null,null,null,null,null,"DISCIPLE NAME:"]
[]
[null,null,null,null,null,"Tick this box to confirm that the examples of project/contract you will provide below in the \"Scope Overview\", were completed in the last 3 years prior to the submission deadline."]
[]
[null,null,null,null,null,"Tick this box Confirm that the examples of project/contract you will provide below in the \"Scope Overview\", were delivered in English."]
[]
[null,null,null,null,null,"Scope Overview – Summarize the Scope of Each Relevant Contract or Project"]
[]
[null,null,null,null,null,"EXAMPLE 1",null,"EXAMPLE 2",null,"EXAMPLE 3"]
[]
[]
[]
[null,null,null,null,null,"End Dates - Enter the End Dates for Each Example Listed Above. (DD/MM/YYYY)"]
[]
[null,null,null,"START DATE"]
[]
[null,null,null,"END DATE"]
[]
[]
[null,null,null,null,37]
[null,null,null,null,null,"DISCIPLE NAME:"]
[]
[null,null,null,null,null,"Tick this box to confirm that the examples of project/contract you will provide below in the \"Scope Overview\", were completed in the last 3 years prior to the submission deadline."]
[]
[null,null,null,null,null,"Tick this box Confirm that the examples of project/contract you will provide below in the \"Scope Overview\", were delivered in English."]
[]
[null,null,null,null,null,"Scope Overview – Summarize the Scope of Each Relevant Contract or Project"]
[]
[null,null,null,null,null,"EXAMPLE 1",null,"EXAMPLE 2",null,"EXAMPLE 3"]
[]
[]
[]
[null,null,null,null,null,"End Dates - Enter the End Dates for Each Example Listed Above. (DD/MM/YYYY)"]
[]
[null,null,null,"START DATE"]
[]
[null,null,null,"END DATE"]
[]
[]
[null,null,null,null,38]
[null,null,null,null,null,"DISCIPLE NAME:"]
[]
[null,null,null,null,null,"Tick this box to confirm that the examples of project/contract you will provide below in the \"Scope Overview\", were completed in the last 3 years prior to the submission deadline."]
[]
[null,null,null,null,null,"Tick this box Confirm that the examples of project/contract you will provide below in the \"Scope Overview\", were delivered in English."]
[]
[null,null,null,null,null,"Scope Overview – Summarize the Scope of Each Relevant Contract or Project"]
[]
[null,null,null,null,null,"EXAMPLE 1",null,"EXAMPLE 2",null,"EXAMPLE 3"]
[]
[]
[]
[null,null,null,null,null,"End Dates - Enter the End Dates for Each Example Listed Above. (DD/MM/YYYY)"]
[]
[null,null,null,"START DATE"]
[]
[null,null,null,"END DATE"]
[]
[]
[null,null,null,null,39]
[null,null,null,null,null,"DISCIPLE NAME:"]
[]
[null,null,null,null,null,"Tick this box to confirm that the examples of project/contract you will provide below in the \"Scope Overview\", were completed in the last 3 years prior to the submission deadline."]
[]
[null,null,null,null,null,"Tick this box Confirm that the examples of project/contract you will provide below in the \"Scope Overview\", were delivered in English."]
[]
[null,null,null,null,null,"Scope Overview – Summarize the Scope of Each Relevant Contract or Project"]
[]
[null,null,null,null,null,"EXAMPLE 1",null,"EXAMPLE 2",null,"EXAMPLE 3"]
[]
[]
[]
[null,null,null,null,null,"End Dates - Enter the End Dates for Each Example Listed Above. (DD/MM/YYYY)"]
[]
[null,null,null,"START DATE"]
[]
[null,null,null,"END DATE"]
[]
[]
[null,null,null,null,40]
[null,null,null,null,null,"DISCIPLE NAME:"]
[]
[null,null,null,null,null,"Tick this box to confirm that the examples of project/contract you will provide below in the \"Scope Overview\", were completed in the last 3 years prior to the submission deadline."]
[]
[null,null,null,null,null,"Tick this box Confirm that the examples of project/contract you will provide below in the \"Scope Overview\", were delivered in English."]
[]
[null,null,null,null,null,"Scope Overview – Summarize the Scope of Each Relevant Contract or Project"]
[]
[null,null,null,null,null,"EXAMPLE 1",null,"EXAMPLE 2",null,"EXAMPLE 3"]
[]
[]
[]
[null,null,null,null,null,"End Dates - Enter the End Dates for Each Example Listed Above. (DD/MM/YYYY)"]
[]
[null,null,null,"START DATE"]
[]
[null,null,null,"END DATE"]
[]
[]
[null,null,null,null,41]
[null,null,null,null,null,"DISCIPLE NAME:"]
[]
[null,null,null,null,null,"Tick this box to confirm that the examples of project/contract you will provide below in the \"Scope Overview\", were completed in the last 3 years prior to the submission deadline."]
[]
[null,null,null,null,null,"Tick this box Confirm that the examples of project/contract you will provide below in the \"Scope Overview\", were delivered in English."]
[]
[null,null,null,null,null,"Scope Overview – Summarize the Scope of Each Relevant Contract or Project"]
[]
[null,null,null,null,null,"EXAMPLE 1",null,"EXAMPLE 2",null,"EXAMPLE 3"]
[]
[]
[]
[null,null,null,null,null,"End Dates - Enter the End Dates for Each Example Listed Above. (DD/MM/YYYY)"]
[]
[null,null,null,"START DATE"]
[]
[null,null,null,"END DATE"]
[]
[]
[null,null,null,null,42]
[null,null,null,null,null,"DISCIPLE NAME:"]
[]
[null,null,null,null,null,"Tick this box to confirm that the examples of project/contract you will provide below in the \"Scope Overview\", were completed in the last 3 years prior to the submission deadline."]
[]
[null,null,null,null,null,"Tick this box Confirm that the examples of project/contract you will provide below in the \"Scope Overview\", were delivered in English."]
[]
[null,null,null,null,null,"Scope Overview – Summarize the Scope of Each Relevant Contract or Project"]
[]
[null,null,null,null,null,"EXAMPLE 1",null,"EXAMPLE 2",null,"EXAMPLE 3"]
[]
[]
[]
[null,null,null,null,null,"End Dates - Enter the End Dates for Each Example Listed Above. (DD/MM/YYYY)"]
[]
[null,null,null,"START DATE"]
[]
[null,null,null,"END DATE"]
[]
[]
[null,null,null,null,43]
[null,null,null,null,null,"DISCIPLE NAME:"]
[]
[null,null,null,null,null,"Tick this box to confirm that the examples of project/contract you will provide below in the \"Scope Overview\", were completed in the last 3 years prior to the submission deadline."]
[]
[null,null,null,null,null,"Tick this box Confirm that the examples of project/contract you will provide below in the \"Scope Overview\", were delivered in English."]
[]
[null,null,null,null,null,"Scope Overview – Summarize the Scope of Each Relevant Contract or Project"]
[]
[null,null,null,null,null,"EXAMPLE 1",null,"EXAMPLE 2",null,"EXAMPLE 3"]
[]
[]
[]
[null,null,null,null,null,"End Dates - Enter the End Dates for Each Example Listed Above. (DD/MM/YYYY)"]
[]
[null,null,null,"START DATE"]
[]
[null,null,null,"END DATE"]
[]
[]
[null,null,null,null,44]
[null,null,null,null,null,"DISCIPLE NAME:"]
[]
[null,null,null,null,null,"Tick this box to confirm that the examples of project/contract you will provide below in the \"Scope Overview\", were completed in the last 3 years prior to the submission deadline."]
[]
[null,null,null,null,null,"Tick this box Confirm that the examples of project/contract you will provide below in the \"Scope Overview\", were delivered in English."]
[]
[null,null,null,null,null,"Scope Overview – Summarize the Scope of Each Relevant Contract or Project"]
[]
[null,null,null,null,null,"EXAMPLE 1",null,"EXAMPLE 2",null,"EXAMPLE 3"]
[]
[]
[]
[null,null,null,null,null,"End Dates - Enter the End Dates for Each Example Listed Above. (DD/MM/YYYY)"]
[]
[null,null,null,"START DATE"]
[]
[null,null,null,"END DATE"]
[]
[]
[null,null,null,null,45]
[null,null,null,null,null,"DISCIPLE NAME:"]
[]
[null,null,null,null,null,"Tick this box to confirm that the examples of project/contract you will provide below in the \"Scope Overview\", were completed in the last 3 years prior to the submission deadline."]
[]
[null,null,null,null,null,"Tick this box Confirm that the examples of project/contract you will provide below in the \"Scope Overview\", were delivered in English."]
[]
[null,null,null,null,null,"Scope Overview – Summarize the Scope of Each Relevant Contract or Project"]
[]
[null,null,null,null,null,"EXAMPLE 1",null,"EXAMPLE 2",null,"EXAMPLE 3"]
[]
[]
[]
[null,null,null,null,null,"End Dates - Enter the End Dates for Each Example Listed Above. (DD/MM/YYYY)"]
[]
[null,null,null,"START DATE"]
[]
[null,null,null,"END DATE"]
[]
[]
[null,null,null,null,46]
[null,null,null,null,null,"DISCIPLE NAME:"]
[]
[null,null,null,null,null,"Tick this box to confirm that the examples of project/contract you will provide below in the \"Scope Overview\", were completed in the last 3 years prior to the submission deadline."]
[]
[null,null,null,null,null,"Tick this box Confirm that the examples of project/contract you will provide below in the \"Scope Overview\", were delivered in English."]
[]
[null,null,null,null,null,"Scope Overview – Summarize the Scope of Each Relevant Contract or Project"]
[]
[null,null,null,null,null,"EXAMPLE 1",null,"EXAMPLE 2",null,"EXAMPLE 3"]
[]
[]
[]
[null,null,null,null,null,"End Dates - Enter the End Dates for Each Example Listed Above. (DD/MM/YYYY)"]
[]
[null,null,null,"START DATE"]
[]
[null,null,null,"END DATE"]
[]
[]
[null,null,null,null,47]
[null,null,null,null,null,"DISCIPLE NAME:"]
[]
[null,null,null,null,null,"Tick this box to confirm that the examples of project/contract you will provide below in the \"Scope Overview\", were completed in the last 3 years prior to the submission deadline."]
[]
[null,null,null,null,null,"Tick this box Confirm that the examples of project/contract you will provide below in the \"Scope Overview\", were delivered in English."]
[]
[null,null,null,null,null,"Scope Overview – Summarize the Scope of Each Relevant Contract or Project"]
[]
[null,null,null,null,null,"EXAMPLE 1",null,"EXAMPLE 2",null,"EXAMPLE 3"]
[]
[]
[]
[null,null,null,null,null,"End Dates - Enter the End Dates for Each Example Listed Above. (DD/MM/YYYY)"]
[]
[null,null,null,"START DATE"]
[]
[null,null,null,"END DATE"]
[]
[]
[null,null,null,null,48]
[null,null,null,null,null,"DISCIPLE NAME:"]
[]
[null,null,null,null,null,"Tick this box to confirm that the examples of project/contract you will provide below in the \"Scope Overview\", were completed in the last 3 years prior to the submission deadline."]
[]
[null,null,null,null,null,"Tick this box Confirm that the examples of project/contract you will provide below in the \"Scope Overview\", were delivered in English."]
[]
[null,null,null,null,null,"Scope Overview – Summarize the Scope of Each Relevant Contract or Project"]
[]
[null,null,null,null,null,"EXAMPLE 1",null,"EXAMPLE 2",null,"EXAMPLE 3"]
[]
[]
[]
[null,null,null,null,null,"End Dates - Enter the End Dates for Each Example Listed Above. (DD/MM/YYYY)"]
[]
[null,null,null,"START DATE"]
[]
[null,null,null,"END DATE"]
[]
[]
[null,null,null,null,49]
[null,null,null,null,null,"DISCIPLE NAME:"]
[]
[null,null,null,null,null,"Tick this box to confirm that the examples of project/contract you will provide below in the \"Scope Overview\", were completed in the last 3 years prior to the submission deadline."]
[]
[null,null,null,null,null,"Tick this box Confirm that the examples of project/contract you will provide below in the \"Scope Overview\", were delivered in English."]
[]
[null,null,null,null,null,"Scope Overview – Summarize the Scope of Each Relevant Contract or Project"]
[]
[null,null,null,null,null,"EXAMPLE 1",null,"EXAMPLE 2",null,"EXAMPLE 3"]
[]
[]
[]
[null,null,null,null,null,"End Dates - Enter the End Dates for Each Example Listed Above. (DD/MM/YYYY)"]
[]
[null,null,null,"START DATE"]
[]
[null,null,null,"END DATE"]
[]
[]
[null,null,null,null,50]
[null,null,null,null,null,"DISCIPLE NAME:"]
[]
[null,null,null,null,null,"Tick this box to confirm that the examples of project/contract you will provide below in the \"Scope Overview\", were completed in the last 3 years prior to the submission deadline."]
[]
[null,null,null,null,null,"Tick this box Confirm that the examples of project/contract you will provide below in the \"Scope Overview\", were delivered in English."]
[]
[null,null,null,null,null,"Scope Overview – Summarize the Scope of Each Relevant Contract or Project"]
[]
[null,null,null,null,null,"EXAMPLE 1",null,"EXAMPLE 2",null,"EXAMPLE 3"]
[]
[]
[]
[null,null,null,null,null,"End Dates - Enter the End Dates for Each Example Listed Above. (DD/MM/YYYY)"]
[]
[null,null,null,"START DATE"]
[]
[null,null,null,"END DATE"]

{"sheet":"4 - Authorisation","index":4,"n_rows":12,"n_cols":8,"rows_kept":12,"cut":false,"hidden":true,"merged":[[2,2,2,8],[5,3,5,7],[9,3,9,5],[11,3,11,5]]}
[]
[]
[null,null,"5 - AUTHORISATION AND SUITABILITY TO CARRY OUT THE RELEVANT PROFESSIONAL ACTIVITY"]
[]
[]
[null,null,null,"You are required to demonstrate your legal capacity to execute the contract and the regulatory authority to carry out the professional activities relevant to this procurement process. Please tick the box below and embed the necessary PDF as a single document in the designated field."]
[]
[]
[]
[null,null,null,"Requirement",null,null,null,"Embed evidence"]
[]
[null,null,null,"Tick this box to confirm your legal capacity and regulatory authority and embed the proof of enrolment in a relevant trade or professional register as a PDF in the designated field."]

{"sheet":"5 - Summary","index":5,"n_rows":48,"n_cols":10,"rows_kept":48,"cut":false,"hidden":true,"merged":[[17,3,17,7],[2,2,2,8],[5,3,5,7],[9,3,9,7],[11,3,11,7],[14,2,14,8],[47,3,47,7],[19,3,19,7],[21,3,21,7],[23,3,23,7],[25,3,25,7],[28,2,28,8],[31,3,31,7],[33,3,33,7],[36,2,36,8],[39,3,39,7],[41,3,41,7],[44,2,44,8]]}
[]
[]
[null,null,"6 - SUMMARY & CONFIRMATION",null,null,null,null,null,null,"?"]
[]
[]
[null,null,null,"This is the final step in completing the ESM response template. Below, you will find a summary of all the information you have provided. Please review this summary carefully to ensure accuracy.\n\nBy ticking the boxes below, you are making two important confirmations on behalf of your organization:\n\n1. You confirm that you are authorized to make this declaration on behalf of your organization.\n2. You confirm that all information provided in this template is complete and accurate.  Your confirmation here is essential to finalize and validate this submission."]
[]
[]
[]
[null,null,null,"Authorization Confirmation: I confirm that I am authorized to make this declaration on behalf of my organization."]
[]
[null,null,null,"Accuracy Confirmation: I confirm that all information provided in this template is complete and accurate."]
[]
[]
[null,null,"1 - ELIGIBILITY CRITERIA"]
[]
[]
[null,null,1,"Declaration on Eligibility: You have confirmed that the Declaration on Eligibility (Annex 3, Section 1) has been completed, signed and embedded."]
[]
[null,null,2,"Declaration of Non-Collusion: You have confirmed that the Declaration of Non-Collusion (Annex 3, Section 2) has been completed, signed and embedded."]
[]
[null,null,3,"Cover Certification Form: You have confirmed that the Cover Certification Form (Annex 3, Section 3.1) has been completed, signed and embedded."]
[]
[null,null,4,"Consortium Declaration: You have confirmed that the Consortium Declaration (Annex 3, Section 3.2) has been signed and embedded by all members of the consortium."]
[]
[null,null,5,"Subcontractor Commitment Letter: You have confirmed that the Subcontractor Commitment Letter (Annex 3, Section 3.3) has been signed and embedded by all subcontractors."]
[]
[]
[null,null,"2 - ECONOMIC AND FINANCIAL STANDING"]
[]
[]
[null,null,1,"Annual Revenue: You have confirmed that evidence of annual revenue in excess of €500,000 for the last two financial years has been provided."]
[]
[null,null,2,"Commercial Response Template: You have confirmed that the completed commercial response template for each discipline bid has been provided and embedded."]
[]
[]
[null,null,"3 - TECHNICAL OR PROFESSIONAL ABILITY"]
[]
[]
[null,null,1,"Project/Contract Timeline: You have confirmed that all three examples of projects/contracts provided for each discipline were completed within the last three years prior to the submission deadline."]
[]
[null,null,2,"Project/Contract Language: You have confirmed that all three examples of projects/contracts provided for each discipline were delivered in English."]
[]
[]
[null,null,"4 - AUTHORISATION AND SUITABILITY TO CARRY OUT THE RELEVANT PROFESSIONAL ACTIVITY"]
[]
[]
[null,null,1,"Legal Capacity and Regulatory Authority: You have confirmed your legal capacity and regulatory authority, with the required PDF evidence embedded in the designated field."]

{"sheet":"HELP","index":6,"n_rows":18,"n_cols":7,"rows_kept":18,"cut":false,"hidden":true,"merged":[[2,2,2,8],[5,3,5,7],[8,2,8,4],[8,5,8,7],[8,8,10,8],[9,3,9,4],[9,6,9,7],[16,2,16,4],[16,5,16,7],[16,8,18,8],[17,3,17,4],[17,6,17,7],[12,2,12,4],[12,5,12,7],[12,8,14,8],[13,3,13,4],[13,6,13,7]]}
[]
[]
[null,null,"Guide: Embedding a PDF Document as an Icon in a Designated Excel Cell"]
[]
[]
[null,null,null,"To embed a PDF document as an icon in a specific cell in Excel, follow these steps:"]
[]
[]
[null,null,1,null,null,2]
[null,null,null,"Select the Cell for Embedding\n\nClick on the cell where you want the PDF icon to appear. Ensure the cell is large enough to display the embedded icon or adjust the cell size after embedding.",null,null,"Insert the PDF as an Object\n\nGo to the Insert tab on the ribbon.\nClick Object in the Text group (you may need to expand by clicking Text > Object)."]
[]
[]
[null,null,3,null,null,4]
[null,null,null,"Choose the PDF File\n\nIn the Object dialog box, select the Create from File tab.\nClick Browse to locate and select the PDF file on your computer.\nEnsure Link to file is unchecked to fully embed the PDF into Excel.",null,null,"Display as an Icon\n\nSelect the Display as icon checkbox. This will embed the PDF as an icon rather than showing the full content.\nOptionally, click Change Icon to choose a custom icon, or keep the default PDF icon."]
[]
[]
[null,null,5,null,null,6]
[null,null,null,"Complete the Embedding\n\nClick OK to insert the PDF as an icon into your selected cell.",null,null,"Position and Resize the Icon\n\nMove the icon to center it within the cell and resize it if necessary to fit neatly.\nTo prevent accidental movement, consider locking the cell once the icon is in place."]

{"sheet":"Engine","index":7,"n_rows":56,"n_cols":94,"rows_kept":56,"cut":false,"hidden":true,"merged":[[1,58,204,75],[0,58,0,75],[1,76,135,92],[0,76,0,92]]}
["Discipline ID",true,"Conc","Selected ?",null,"Part of a Consortium ?",false,null,"CM","SC","Output",null,"Ec Box 1","Ec Box 2","Ec Box 3","Ec Box 4","Ec Box 5","Ec Box 6","Ec Box 7","Ec Box 8","Ec Box 9","Ec Box 10",null,"revenue in excess of €500,000 for the last two Financial years",false,null,null,"Discipline name","completed in the last 3 years ?","delivered in English ?","Example 1","Example 2","Example 3","Start date 1","Start date 2","Start date 3","End date 1","End date 2","End date 3","Discipline filled ?","completed in the last 3 years ?","delivered in English ?","Example 1","Example 2","Example 3","Start date 1","Start date 2","Start date 3","End date 1","End date 2","End date 3","1st within 3 years","2nd Within 3 years","3rd within 3 years","Submission deadline"," legal capacity and regulatory authority",false,null,"PROMPT FOT DEERMINING WHICH ROW IS O BE VISIBLE ON SHEET ELIGIBIITY CRITERIA",null,null,null,null,null,null,null,null,null,null,null,null,null,null,null,null,null,"Prompt for checking that all eligibility criteria are met. ",null,null,null,null,null,null,null,null,null,null,null,null,null,null,null,null,"Legal entity name"]
["01","Financial instruments",{"$f":"A2&\"-\"&B2","v":"01-Financial instruments"},false,null,"Working with Subcontractors ?",false,null,1,1,{"$f":"IF(AND($G$4 = I2, $G$5 = J2), \"T\", \"F\")","v":"F"},"Declaration on Eligibility Annex 3 Section 1 ",false,false,false,false,false,false,false,false,false,false,null,"completion of the commercial response template for each discipline bid",false,null,"Box 1",{"$f":"'3 - Technical ability'!H10","v":"01-Financial instruments"},false,true,{"$f":"'3 - Technical ability'!F20","v":0},{"$f":"'3 - Technical ability'!H20","v":0},{"$f":"'3 - Technical ability'!J20","v":0},{"$f":"'3 - Technical ability'!F24","v":"00:00:00"},{"$f":"'3 - Technical ability'!H24","v":"00:00:00"},{"$f":"'3 - Technical ability'!J24","v":"00:00:00"},{"$f":"'3 - Technical ability'!F26","v":"00:00:00"},{"$f":"'3 - Technical ability'!H26","v":"00:00:00"},{"$f":"'3 - Technical ability'!J26","v":"00:00:00"},{"$f":"IF(OR(AB2 = \"\", AB2 = 0), \"F\", \"T\")","v":"T"},{"$f":"IF(AC2=FALSE,\"F\",\"T\")","v":"F"},{"$f":"IF(AD2=FALSE,\"F\",\"T\")","v":"T"},{"$f":"IF(OR(AE2 = \"\", AE2 = 0), \"F\", \"T\")","v":"F"},"F","F","T","T","T","F","F","F",{"$f":"IF(AND(AK2 <= $BC$2, AK2 >= ($BC$2 - 1095)), \"T\", \"F\")","v":"F"},{"$f":"IF(AND(AL2 <= $BC$2, AL2 >= ($BC$2 - 1095)), \"T\", \"F\")","v":"F"},"F",{"$f":"TODAY()","v":"2025-01-08"},null,null,null,{"$cut":{"chars":20326,"head":"IF K2 is “T” unhide row 21:31, 35:38, and 45:47.  Set D22 to “Legal name of Consortium Member” set D36 to “Legal name of Sub - Contractor”.\nIF K3 is “T” unhide row 21:31, 35:38, 45:47, 49:52, and 59:62. Set D22 to “Legal name of Consortium Member”, set D36 to “Legal name of Sub - Contractor”, set D50 to “Legal name of Sub - Contractor”.\nIF K4 is “T” unhide row 21:31, 35:38, 45:47, 49:52, 59:62, 63:66, and 73:76 Set D22 to “Legal name of Consortium Member”, set D36 to “Legal name of Sub - Contractor”, set D50 to “Legal name of Sub - Contractor”, set D64 to “Legal name of Sub - Contractor”.\nIF K5 is “T” unhide row 21:31, 35:38, 45:47, 49:52, 59:62, 63:66,73:76, 77:80, and 87:90. Set D22 to “Legal name of Consortium Member”, set D36 to “Legal name of Sub - Contractor”, set D50 to “Legal name of Sub - Contractor”, set D64 to “Legal name of Sub - Contractor”, set D78 to “Legal name of Sub - Contractor”.\nIF K6 is “T” unhide row 21:31, 35:38, 45:47, 49:52, 59:62, 63:66,73:76, 77:80, 87:90,91:94 and 101:104 Set D22 to “Legal name of Consortium Member”, set D36 to “Legal name of Sub - Contractor”, set D50 to “Legal name of Sub - Contractor”, set D64 to “Legal name of Sub - Contractor”, set D78 to “Legal name of Sub - Contractor”, set D92 to “Legal name of Sub - Contractor”.\nIF K7 is “T” unhide row 21:31, 35:38, 45:47, 49:52, 59:62, 63:66,73:76, 77:80, 87:90,91:94, 101:104, 105:108, and 115:118. Set D22 to “Legal name of Consortium Member”, set D36 to “Legal name of Sub - Contractor”, set D50 to “Legal name of Sub - Contractor”, set D64 to “Legal name of Sub - Contractor”, set D78 to “Legal name of Sub - Contractor”, set D92 to “Legal name of Sub - Contractor”, set D106 to “Legal name of Sub - Contractor”.\nIF K8 is “T” unhide row 21:31, 35:38, 45:47, 49:52, 59:62, 63:66,73:76, 77:80, 87:90,91:94, 101:104, 105:108, 115:118, 119:122 and 129:132 Set D22 to “Legal name of Consortium Member”, set D36 to “Legal name of Sub - Contractor”, set D50 to “Legal name of Sub - Contractor”, set D64 to “Legal name of Sub - Contractor”, set D78 to “Legal name of Sub - Contractor”, set D92 to “Legal name of Sub - Contractor”, set D106 to “Legal name of Sub - Contractor”, set D120 to “Legal name of Sub - Contractor”.\nIF K9 is “T” unhide row 21:31, 35:38, 45:47, 49:52, 59:62, 63:66,73:76, 77:80, 87:90,91:94, 101:104, 105:108, 115:118, 119:122, 129:132, 133:136 and 143:146 Set D22 to “Legal name of Consortium Member”, set D36 to “Legal name of Sub - Contractor”, set D50 to “Legal name of Sub - Contractor”, set D64 to “Legal name of Sub - Contractor”, set D78 to “Legal name of Sub - Contractor”, set D92 to “Legal name of Sub - Contractor”, set D106 to “Legal name of Sub - Contractor”, set D120 to “Legal name of Sub - Contractor”, set D134 to “Legal name of Sub - Contractor”.\nIF K10 is “T” unhide row 21:31, 34:45, 48:52 and 59:62.  Set D22 to “Legal name of Consortium Member” set D36 to “Legal name of Consortium Member”, set D50 to “Legal name of Sub - Contractor”.\nIF K11 is “T” unhide row 21:31, 34:45, 48:52 59:62, 63:66 and 73:76 Set D22 to “Legal name of Consortium Member” set D36 to “Legal name of Consortium Member”, set D50 to “Legal name of Sub - Contractor”, set D64 to “Legal name of Sub - Contractor”.\nIF K12 is “T” unhide row 21:31, 34:45, 48:52 59:62, 63:66, 73:76,77:80 and 87:90 Set D22 to “Legal name of Consortium Member” set D36 to “Legal name of Consortium Member”, set D50 to “Legal name of Sub - Contractor”, set D64 to “Legal name of Sub - Contractor”, set D78 to “Legal name of Sub - Contractor”.\nIF K13 is “T” unhide row 21:31, 34:45, 48:52 59:62, 63:66, 73:76,77:80, 87:90, 91:94 and 101:104 Set D22 to “Legal name of Consortium Member” set D36 to “Legal name of Consortium Member”, set D50 to “Legal name of Sub - Contractor”, set D64 to “Legal name of Sub - Contractor”, set D78 to “Legal name of Sub - Contractor”, ”, set D92 to “Legal name of Sub - Contractor”.\nIF K14 is “T” unhide row 21:31, 34:45, 48:52 59:62, 63:66, 73:76,77:80, 87:90, 91:94, 101:104, 105:108 and 115:118 Set D22 to “Legal name of Consortium Member” set D36 to “Legal name"}},null,null,null,null,null,null,null,null,null,null,null,null,null,null,null,null,null,"IF K2 is “T”, M7:M11 must be “T”, N7:N10 must be “T”, O7 and O11 must be \"T”.\nIF K3 is “T”, M7:M11 must be “T”, N7:N10 must be “T”, O7 and O11 must be \"T”, P7 and P11 must be “T”.\nIF K4 is “T”, M7:M11 must be “T”, N7:N10 must be “T”, O7 and O11 must be \"T”, P7 and P11 must be “T”, Q7 and Q11 must be “T”.\nIF K5 is “T”, M7:M11 must be “T”, N7:N10 must be “T”, O7 and O11 must be \"T”, P7 and P11 must be “T”, Q7 and Q11 must be “T”, R7 and R11 must be “T”.\nIF K6 is “T”, M7:M11 must be “T”, N7:N10 must be “T”, O7 and O11 must be \"T”, P7 and P11 must be “T”, Q7 and Q11 must be “T”, R7 and R11 must be “T”, S7 and S11 must be “T”.\nIF K7 is “T”, M7:M11 must be “T”, N7:N10 must be “T”, O7 and O11 must be \"T”, P7 and P11 must be “T”, Q7 and Q11 must be “T”, R7 and R11 must be “T”, S7 and S11 must be “T”, T7 and T11 must be “T”.\nIF K8 is “T”, M7:M11 must be “T”, N7:N10 must be “T”, O7 and O11 must be \"T”, P7 and P11 must be “T”, Q7 and Q11 must be “T”, R7 and R11 must be “T”, S7 and S11 must be “T”, T7 and T11 must be “T”, U7 and U11 must be “T”.\nIF K9 is “T”, M7:M11 must be “T”, N7:N10 must be “T”, O7 and O11 must be \"T”, P7 and P11 must be “T”, Q7 and Q11 must be “T”, R7 and R11 must be “T”, S7 and S11 must be “T”, T7 and T11 must be “T”, U7 and U11 must be “T”, V7 and V11 must be “T”.\nIF K10 is “T”, M7:M11 must be “T”, N7:N10 must be “T”, O7:O10 must be \"T”, P7 and P11 must be “T”.\nIF K11 is “T”, M7:M11 must be “T”, N7:N10 must be “T”, O7:O10 must be \"T”, P7 and P11 must be “T”, Q7 and Q11 must be “T”.\nIF K12 is “T”, M7:M11 must be “T”, N7:N10 must be “T”, O7:O10 must be \"T”, P7 and P11 must be “T”, Q7 and Q11 must be “T”, R7 and R11 must be “T”.\nIF K13 is “T”, M7:M11 must be “T”, N7:N10 must be “T”, O7:O10 must be \"T”, P7 and P11 must be “T”, Q7 and Q11 must be “T”, R7 and R11 must be “T”, S7 and S11 must be “T”.\nIF K14 is “T”, M7:M11 must be “T”, N7:N10 must be “T”, O7:O10 must be \"T”, P7 and P11 must be “T”, Q7 and Q11 must be “T”, R7 and R11 must be “T”, S7 and S11 must be “T”, T7 and T11 must be “T”.\nIF K15 is “T”, M7:M11 must be “T”, N7:N10 must be “T”, O7:O10 must be \"T”, P7 and P11 must be “T”, Q7 and Q11 must be “T”, R7 and R11 must be “T”, S7 and S11 must be “T”, T7 and T11 must be “T”, U7 and U11 must be “T”.\nIF K16 is “T”, M7:M11 must be “T”, N7:N10 must be “T”, O7:O10 must be \"T”, P7 and P11 must be “T”, Q7 and Q11 must be “T”, R7 and R11 must be “T”, S7 and S11 must be “T”, T7 and T11 must be “T”, U7 and U11 must be “T”, V7 and V11 must be “T”.\nIF K17 is “T”, M7:M11 must be “T”, N7:N10 must be “T”, O7:O10 must be \"T”, P7:P10 must be “T”, Q7 and Q11 must be “T”.\nIF K18 is “T”, M7:M11 must be “T”, N7:N10 must be “T”, O7:O10 must be \"T”, P7:P10 must be “T”, Q7 and Q11 must be “T”, R7 and R11 must be “T”.\nIF K19 is “T”, M7:M11 must be “T”, N7:N10 must be “T”, O7:O10 must be \"T”, P7:P10 must be “T”, Q7 and Q11 must be “T”, R7 and R11 must be “T”, S7 and S11 must be “T”.\nIF K20 is “T”, M7:M11 must be “T”, N7:N10 must be “T”, O7:O10 must be \"T”, P7:P10 must be “T”, Q7 and Q11 must be “T”, R7 and R11 must be “T”, S7 and S11 must be “T”, T7 and T11 must be “T”.\nIF K21 is “T”, M7:M11 must be “T”, N7:N10 must be “T”, O7:O10 must be \"T”, P7:P10 must be “T”, Q7 and Q11 must be “T”, R7 and R11 must be “T”, S7 and S11 must be “T”, T7 and T11 must be “T”, U7 and U11 must be “T”.\nIF K22 is “T”, M7:M11 must be “T”, N7:N10 must be “T”, O7:O10 must be \"T”, P7:P10 must be “T”, Q7 and Q11 must be “T”, R7 and R11 must be “T”, S7 and S11 must be “T”, T7 and T11 must be “T”, U7 and U11 must be “T”, V7 and V11 must be “T”.\nIF K23 is “T”, M7:M11 must be “T”, N7:N10 must be “T”, O7:O10 must be \"T”, P7:P10 must be “T”, Q7:Q10 must be “T”, R7 and R11 must be “T”.\nIF K24 is “T”, M7:M11 must be “T”, N7:N10 must be “T”, O7:O10 must be \"T”, P7:P10 must be “T”, Q7:Q10 must be “T”, R7 and R11 must be “T”, S7 and S11 must be “T”.\nIF K25 is “T”, M7:M11 must be “T”, N7:N10 must be “T”, O7:O10 must be \"T”, P7:P10 must be “T”, Q7:Q10 must be “T”, R7 and R11 must be “T”, S7 and S11 must be “T”, T7 and T11 must be “T”.\nIF K26 is “T”, M7:M11 must be “T”, N7:N10 must be “T”, O7:O10 must be \"T”, P7:P10 must be “T”, Q7:Q10 must be “T”, R7 and R11 must be “T”, S7 and S11 must be “T”, T7 and T11 must be “T”, U7 and U11 must be “T”.\nIF K27 is “T”, M7:M11 must be “T”, N7:N10 must be “T”, O7:O10 must be \"T”, P7:P10 must be “T”, Q7:Q10 must be “T”, R7 and R11 must be “T”, S7 and S11 must be “T”, T7 and T11 must be “T”, U7 and U11 must be “T”, V7 and V11 must be “T”.\nIF K28 is “T”, M7:M11 must be “T”, N7:N10 must be “T”, O7:O10 must be \"T”, P7:P10 must be “T”, Q7:Q10 must be “T”, R7:R10 must be “T”, S7 and S11 must be “T”.\nIF K29 is “T”, M7:M11 must be “T”, N7:N10 must be “T”, O7:O10 must be \"T”, P7:P10 must be “T”, Q7:Q10 must be “T”, R7:R10 must be “T”, S7 and S11 must be “T”, T7 and T11 must be “T”.\nIF K30 is “T”, M7:M11 must be “T”, N7:N10 must be “T”, O7:O10 must be \"T”, P7:P10 must be “T”, Q7:Q10 must be “T”, R7:R10 must be “T”, S7 and S11 must be “T”, T7 and T11 must be “T”, U7 and U11 must be “T”.\nIF K31 is “T”, M7:M11 must be “T”, N7:N10 must be “T”, O7:O10 must be \"T”, P7:P10 must be “T”, Q7:Q10 must be “T”, R7:R10 must be “T”, S7 and S11 must be “T”, T7 and T11 must be “T”, U7 and U11 must be “T”, V7 and V11 must be “T”.\nIF K32 is “T”, M7:M11 must be “T”, N7:N10 must be “T”, O7:O10 must be \"T”, P7:P10 must be “T”, Q7:Q10 must be “T”, R7:R10 must be “T”, S7:S10 must be “T”, T7 and T11 must be “T”.\nIF K33 is “T”, M7:M11 must be “T”, N7:N10 must be “T”, O7:O10 must be \"T”, P7:P10 must be “T”, Q7:Q10 must be “T”, R7:R10 must be “T”, S7:S10 must be “T”, T7 and T11 must be “T”, U7 and U11 must be “T”.\n\n\n\nIF K34 is “T”, M7:M11 must be “T”, N7:N10 must be “T”, O7:O10 must be \"T”, P7:P10 must be “T”, Q7:Q10 must be “T”, R7:R10 must be “T”, S7:S10 must be “T”, T7 and T11 must be “T”, U7 and U11 must be “T”, V7 and V11 must be “T”.\nIF K35 is “T”, M7:M11 must be “T”, N7:N10 must be “T”, O7:O10 must be \"T”, P7:P10 must be “T”, Q7:Q10 must be “T”, R7:R10 must be “T”, S7:S10 must be “T”, T7:T10 must be “T”, U7 and U11 must be “T”.\nIF K36 is “T”, M7:M11 must be “T”, N7:N10 must be “T”, O7:O10 must be \"T”, P7:P10 must be “T”, Q7:Q10 must be “T”, R7:R10 must be “T”, S7:S10 must be “T”, T7:T10 must be “T”, U7 and U11 must be “T”, V7 and V11 must be “T”.\nIF K37 is “T”, M7:M11 must be “T”, N7:N10 must be “T”, O7:O10 must be \"T”, P7:P10 must be “T”, Q7:Q10 must be “T”, R7:R10 must be “T”, S7:S10 must be “T”, T7:T10 must be “T”, U7:U10 must be “T”, V7 and V11 must be “T”.\nIF K38 is “T”, M7:M11 must be “T”, N7:N10 must be “T”.\nIF K39 is “T”, M7:M11 must be “T”, N7:N10 must be “T”, O7:O10 must be “T”.\nIF K40 is “T”, M7:M11 must be “T”, N7:N10 must be “T”, O7:O10 must be “T”, P7:P10 must be “T”.\nIF K41 is “T”, M7:M11 must be “T”, N7:N10 must be “T”, O7:O10 must be “T”, P7:P10 must be “T”, Q7:Q10 must be “T”.\nIF K42 is “T”, M7:M11 must be “T”, N7:N10 must be “T”, O7:O10 must be “T”, P7:P10 must be “T”, Q7:Q10 must be “T”, R7:R10 must be “T”.\nIF K43 is “T”, M7:M11 must be “T”, N7:N10 must be “T”, O7:O10 must be “T”, P7:P10 must be “T”, Q7:Q10 must be “T”, R7:R10 must be “T”, S7:S10 must be “T”.\nIF K44 is “T”, M7:M11 must be “T”, N7:N10 must be “T”, O7:O10 must be “T”, P7:P10 must be “T”, Q7:Q10 must be “T”, R7:R10 must be “T”, S7:S10 must be “T”, T7:T10 must be “T”.\nIF K45 is “T”, M7:M11 must be “T”, N7:N10 must be “T”, O7:O10 must be “T”, P7:P10 must be “T”, Q7:Q10 must be “T”, R7:R10 must be “T”, S7:S10 must be “T”, T7:T10 must be “T”, U7:U10 must be “T”.\nIF K46 is “T”, M7:M11 must be “T”, N7:N10 must be “T”, O7:O10 must be “T”, P7:P10 must be “T”, Q7:Q10 must be “T”, R7:R10 must be “T”, S7:S10 must be “T”, T7:T10 must be “T”, U7:U10 must be “T”, V7:V10 must be “T”.\nIF K47 is “T”, M7:M11 must be “T”, N7 and N11 must be “T”.\nIF K48 is “T”, M7:M11 must be “T”, N7 and N11 must be “T”, O7 and O11 must be “T”.\nIF K49 is “T”, M7:M11 must be “T”, N7 and N11 must be “T”, O7 and O11 must be “T”, P7 and P11 must be “T”.\nIF K50 is “T”, M7:M11 must be “T”, N7 and N11 must be “T”, O7 and O11 must be “T”, P7 and P11 must be “T”, Q7 and Q11 must be “T”.\nIF K51 is “T”, M7:M11 must be “T”, N7 and N11 must be “T”, O7 and O11 must be “T”, P7 and P11 must be “T”, Q7 and Q11 must be “T”, R7 and R11 must be “T”.\nIF K52 is “T”, M7:M11 must be “T”, N7 and N11 must be “T”, O7 and O11 must be “T”, P7 and P11 must be “T”, Q7 and Q11 must be “T”, R7 and R11 must be “T”, S7 and S11 must be “T”.\nIF K53 is “T”, M7:M11 must be “T”, N7 and N11 must be “T”, O7 and O11 must be “T”, P7 and P11 must be “T”, Q7 and Q11 must be “T”, R7 and R11 must be “T”, S7 and S11 must be “T”, T7 and T11 must be “T”.\nIF K54 is “T”, M7:M11 must be “T”, N7 and N11 must be “T”, O7 and O11 must be “T”, P7 and P11 must be “T”, Q7 and Q11 must be “T”, R7 and R11 must be “T”, S7 and S11 must be “T”, T7 and T11 must be “T”, U7 and U11 must be “T”.\nIF K55 is “T”, M7:M11 must be “T”, N7 and N11 must be “T”, O7 and O11 must be “T”, P7 and P11 must be “T”, Q7 and Q11 must be “T”, R7 and R11 must be “T”, S7 and S11 must be “T”, T7 and T11 must be “T”, U7 and U11 must be “T”, V7 and V11 must be “T”.\nIF K56 is “T”, M7:M10 must be “T”"]
["02","Market Infrastructure​",{"$f":"A3&\"-\"&B3","v":"02-Market Infrastructure​"},false,null,null,null,null,1,2,{"$f":"IF(AND($G$4 = I3, $G$5 = J3), \"T\", \"F\")","v":"F"},"Declaration of Non-Collusion Annex 3 Section 2",false,false,false,false,false,false,false,false,false,false,null,null,null,null,"Box 2",{"$f":"'3 - Technical ability'!H30","v":"02-Market Infrastructure​"},false,true,{"$f":"'3 - Technical ability'!F40","v":0},{"$f":"'3 - Technical ability'!H40","v":0},{"$f":"'3 - Technical ability'!J40","v":0},{"$f":"'3 - Technical ability'!F44","v":"00:00:00"},{"$f":"'3 - Technical ability'!H44","v":"00:00:00"},{"$f":"'3 - Technical ability'!J44","v":"00:00:00"},{"$f":"'3 - Technical ability'!F46","v":"00:00:00"},{"$f":"'3 - Technical ability'!H46","v":"00:00:00"},{"$f":"'3 - Technical ability'!J46","v":"00:00:00"},{"$f":"IF(OR(AB3 = \"\", AB3 = 0), \"F\", \"T\")","v":"T"},{"$f":"IF(AC3=FALSE,\"F\",\"T\")","v":"F"},{"$f":"IF(AD3=FALSE,\"F\",\"T\")","v":"T"},{"$f":"IF(OR(AE3 = \"\", AE3 = 0), \"F\", \"T\")","v":"F"},{"$f":"IF(OR(AF3 = \"\", AF3 = 0), \"F\", \"T\")","v":"F"},{"$f":"IF(OR(AG3 = \"\", AG3 = 0), \"F\", \"T\")","v":"F"},"T","T","T",{"$f":"IF(OR(AK3 = \"\", AK3 = 0), \"F\", \"T\")","v":"F"},{"$f":"IF(OR(AL3 = \"\", AL3 = 0), \"F\", \"T\")","v":"F"},{"$f":"IF(OR(AM3 = \"\", AM3 = 0), \"F\", \"T\")","v":"F"},{"$f":"IF(AND(AK3 <= $BC$2, AK3 >= ($BC$2 - 1095)), \"T\", \"F\")","v":"F"},{"$f":"IF(AND(AL3 <= $BC$2, AL3 >= ($BC$2 - 1095)), \"T\", \"F\")","v":"F"},{"$f":"IF(AND(AM3 <= $BC$2, AM3 >= ($BC$2 - 1095)), \"T\", \"F\")","v":"F"},null,"Legal capacity and reg authority confirmed ?",{"$f":"IF(BE1=TRUE,\"T\",\"F\")","v":"F"}]
["03","Capital Markets functions​","03-Capital Markets functions​",false,null,"Total number of Consortium Members",{"$f":"Discipline!N4","v":1},null,1,3,"F","Consortium declaration Annex 3 Section 3.2",false,false,false,false,false,false,false,false,false,false,null,"revenue in excess of €500,000 for the last two Financial years ?",{"$f":"IF(Y1=TRUE,\"T\",\"F\")","v":"F"},null,"Box 3",{"$f":"'3 - Technical ability'!H50","v":"03-Capital Markets functions​"},false,true,{"$f":"'3 - Technical ability'!F60","v":0},{"$f":"'3 - Technical ability'!H60","v":0},{"$f":"'3 - Technical ability'!J60","v":0},{"$f":"'3 - Technical ability'!F64","v":"00:00:00"},{"$f":"'3 - Technical ability'!H64","v":"00:00:00"},{"$f":"'3 - Technical ability'!J64","v":"00:00:00"},{"$f":"'3 - Technical ability'!F66","v":"00:00:00"},{"$f":"'3 - Technical ability'!H66","v":"00:00:00"},{"$f":"'3 - Technical ability'!J66","v":"00:00:00"},"T","F","T","F","F","F","T","T","T","F","F","F","F","F","F"]
["04","Risk management​","04-Risk management​",false,null,"Total number of Consortium Sub - contractors",{"$f":"Discipline!N6","v":0},null,1,4,"F","Subcontractor commitment letter Annex 3 Section 3.3",false,false,false,false,false,false,false,false,false,false,null,"completion of the commercial response template for each discipline bid",{"$f":"IF(Y2=TRUE,\"T\",\"F\")","v":"F"},null,"Box 4",{"$f":"'3 - Technical ability'!H70","v":"04-Risk management​"},false,true,{"$f":"'3 - Technical ability'!F80","v":0},{"$f":"'3 - Technical ability'!H80","v":0},{"$f":"'3 - Technical ability'!J80","v":0},{"$f":"'3 - Technical ability'!F84","v":"00:00:00"},{"$f":"'3 - Technical ability'!H84","v":"00:00:00"},{"$f":"'3 - Technical ability'!J84","v":"00:00:00"},{"$f":"'3 - Technical ability'!F86","v":"00:00:00"},{"$f":"'3 - Technical ability'!H86","v":"00:00:00"},{"$f":"'3 - Technical ability'!J86","v":"00:00:00"},"T","F","T","F","F","F","T","T","T","F","F","F","F","F","F"]
["05","IT Financial Systems​","05-IT Financial Systems​",false,null,"Total",{"$f":"SUM(G4:G5)","v":1},null,1,5,"F","Legal Name",{"$f":"'1 - Eligibility criteria'!F8","v":0},{"$f":"'1 - Eligibility criteria'!F22","v":0},{"$f":"'1 - Eligibility criteria'!F36","v":0},{"$f":"'1 - Eligibility criteria'!F50","v":0},{"$f":"'1 - Eligibility criteria'!F64","v":0},{"$f":"'1 - Eligibility criteria'!F78","v":0},{"$f":"'1 - Eligibility criteria'!F92","v":0},{"$f":"'1 - Eligibility criteria'!F106","v":0},{"$f":"'1 - Eligibility criteria'!F120","v":0},{"$f":"'1 - Eligibility criteria'!F134","v":0},null,null,null,null,"Box 5",{"$f":"'3 - Technical ability'!H90","v":"05-IT Financial Systems​"},false,true,{"$f":"'3 - Technical ability'!F100","v":0},{"$f":"'3 - Technical ability'!H100","v":0},{"$f":"'3 - Technical ability'!J100","v":0},{"$f":"'3 - Technical ability'!F104","v":"00:00:00"},{"$f":"'3 - Technical ability'!H104","v":"00:00:00"},{"$f":"'3 - Technical ability'!J104","v":"00:00:00"},{"$f":"'3 - Technical ability'!F106","v":"00:00:00"},{"$f":"'3 - Technical ability'!H106","v":"00:00:00"},{"$f":"'3 - Technical ability'!J106","v":"00:00:00"},"T","F","T","F","F","F","T","T","T","F","F","F",{"$f":"IF(AND(AK6 <= $BC$2, AK6 >= ($BC$2 - 1095)), \"T\", \"F\")","v":"F"},{"$f":"IF(AND(AL6 <= $BC$2, AL6 >= ($BC$2 - 1095)), \"T\", \"F\")","v":"F"},{"$f":"IF(AND(AM6 <= $BC$2, AM6 >= ($BC$2 - 1095)), \"T\", \"F\")","v":"F"},null,"Authorization Confirmation",false]
["06","IT Security​","06-IT Security​",false,null,"Met  condition required for Consortium ?",{"$f":"IF(G4>=1,\"T\",\"F\")","v":"T"},null,1,6,"F","Legal Name entered?",{"$f":"IF(M6=0,\"F\",\"T\")","v":"F"},{"$f":"IF(N6=0,\"F\",\"T\")","v":"F"},"F","F","F","F","F","F","F","F",null,"consultants meeting the minimum requirements listed in section 4 of the ToR.",false,null,"Box 6",{"$f":"'3 - Technical ability'!H110","v":"14-Communications​"},false,true,{"$f":"'3 - Technical ability'!F120","v":0},{"$f":"'3 - Technical ability'!H120","v":0},{"$f":"'3 - Technical ability'!J120","v":0},{"$f":"'3 - Technical ability'!F124","v":"00:00:00"},{"$f":"'3 - Technical ability'!H124","v":"00:00:00"},{"$f":"'3 - Technical ability'!J124","v":"00:00:00"},{"$f":"'3 - Technical ability'!F126","v":"00:00:00"},{"$f":"'3 - Technical ability'!H126","v":"00:00:00"},{"$f":"'3 - Technical ability'!J126","v":"00:00:00"},"T","F","T","F","F","F","T","T","T","F","F","F","F","F","F",null,"Accuracy Confirmation",false]
["07","Enterprise / IT Architecture and infrastructure​","07-Enterprise / IT Architecture and infrastructure​",false,null,"Met  condition required for Sub-contractors ?",{"$f":"IF(G5>=1,\"T\",\"F\")","v":"F"},null,1,7,"F","Declaration on Eligibility Annex 3 Section 1 checked ?",{"$f":"IF(M2=FALSE,\"F\",\"T\")","v":"F"},{"$f":"IF(N2=FALSE,\"F\",\"T\")","v":"F"},"F","F","F","F","F","F","F","F",null,null,null,null,"Box 7",{"$f":"'3 - Technical ability'!H130","v":"15-Human resources and organisation"},false,true,{"$f":"'3 - Technical ability'!F140","v":0},{"$f":"'3 - Technical ability'!H140","v":0},{"$f":"'3 - Technical ability'!J140","v":0},{"$f":"'3 - Technical ability'!F144","v":"00:00:00"},{"$f":"'3 - Technical ability'!H144","v":"00:00:00"},{"$f":"'3 - Technical ability'!J144","v":"00:00:00"},{"$f":"'3 - Technical ability'!F146","v":"00:00:00"},{"$f":"'3 - Technical ability'!H146","v":"00:00:00"},{"$f":"'3 - Technical ability'!J146","v":"00:00:00"},"T","F","T","F","F","F","T","T","T","F","F","F","F","F","F"]
["08","Outsourced service providers and cloud services​","08-Outsourced service providers and cloud services​",false,null,"Are there more than 9 SC and MB together ?",{"$f":"IF(G6>9,\"T\",\"F\")","v":"F"},null,1,8,"F","Declaration of Non-Collusion Annex 3 Section 2 Checked ?",{"$f":"IF(M3=FALSE,\"F\",\"T\")","v":"F"},"F","F","F","F","F","F","F","F","F",null,"Consultant meets minimum requirement ?",{"$f":"IF(Y7=TRUE,\"T\",\"F\")","v":"F"},null,"Box 8",{"$f":"'3 - Technical ability'!H150","v":"27-Information security​"},false,true,{"$f":"'3 - Technical ability'!F160","v":0},{"$f":"'3 - Technical ability'!H160","v":0},{"$f":"'3 - Technical ability'!J160","v":0},{"$f":"'3 - Technical ability'!F164","v":"00:00:00"},{"$f":"'3 - Technical ability'!H164","v":"00:00:00"},{"$f":"'3 - Technical ability'!J164","v":"00:00:00"},{"$f":"'3 - Technical ability'!F166","v":"00:00:00"},{"$f":"'3 - Technical ability'!H166","v":"00:00:00"},{"$f":"'3 - Technical ability'!J166","v":"00:00:00"},"T","F","T","F","F","F","T","T","T","F","F","F","F","F","F",null,"Authorization Confirmation ?",{"$f":"IF(BE6=TRUE,\"T\",\"F\")","v":"F"}]
["09","Application development​","09-Application development​",false,null,"Not Consortium and no subcontractors",{"$f":"IF(AND(G1=FALSE, G2=FALSE), \"T\", \"F\")","v":"T"},null,2,1,"F","Consortium declaration Annex 3 Section 3.2 Checked ?","F","F","F","F","F","F","F","F","F","F",null,null,null,null,"Box 9",{"$f":"'3 - Technical ability'!H170","v":0},false,true,{"$f":"'3 - Technical ability'!F180","v":0},{"$f":"'3 - Technical ability'!H180","v":0},{"$f":"'3 - Technical ability'!J180","v":0},{"$f":"'3 - Technical ability'!F184","v":"00:00:00"},{"$f":"'3 - Technical ability'!H184","v":"00:00:00"},{"$f":"'3 - Technical ability'!J184","v":"00:00:00"},{"$f":"'3 - Technical ability'!F186","v":"00:00:00"},{"$f":"'3 - Technical ability'!H186","v":"00:00:00"},{"$f":"'3 - Technical ability'!J186","v":"00:00:00"},"F","F","T","F","F","F","T","T","T","F","F","F","F","F","F",null,"Accuracy Confirmation ?",{"$f":"IF(BE7=TRUE,\"T\",\"F\")","v":"F"}]
["10","Digital transformation​","10-Digital transformation​",false,null,"Consortium but not subcontractor",{"$f":"IF(AND(G1=TRUE, G2=FALSE), \"T\", \"F\")","v":"F"},null,2,2,"F","Subcontractor commitment letter Annex 3 Section 3.3 Checked ?","F","F","F","F","F","F","F","F","F","F",null,null,null,null,"Box 10",{"$f":"'3 - Technical ability'!H190","v":0},false,true,{"$f":"'3 - Technical ability'!F200","v":0},{"$f":"'3 - Technical ability'!H200","v":0},{"$f":"'3 - Technical ability'!J200","v":0},{"$f":"'3 - Technical ability'!F204","v":"00:00:00"},{"$f":"'3 - Technical ability'!H204","v":"00:00:00"},{"$f":"'3 - Technical ability'!J204","v":"00:00:00"},{"$f":"'3 - Technical ability'!F206","v":"00:00:00"},{"$f":"'3 - Technical ability'!H206","v":"00:00:00"},{"$f":"'3 - Technical ability'!J206","v":"00:00:00"},"F","F","T","F","F","F","T","T","T","F","F","F","F","F","F"]
["11","ERP platforms​","11-ERP platforms​",false,null,"Subcontractor but not consortium",{"$f":"IF(AND(G1=FALSE, G2=TRUE), \"T\", \"F\")","v":"F"},null,2,3,"F",null,null,null,null,null,null,null,null,null,null,null,null,null,null,null,"Box 11",{"$f":"'3 - Technical ability'!H210","v":0},false,true,{"$f":"'3 - Technical ability'!F220","v":0},{"$f":"'3 - Technical ability'!H220","v":0},{"$f":"'3 - Technical ability'!J220","v":0},{"$f":"'3 - Technical ability'!F224","v":"00:00:00"},{"$f":"'3 - Technical ability'!H224","v":"00:00:00"},{"$f":"'3 - Technical ability'!J224","v":"00:00:00"},{"$f":"'3 - Technical ability'!F226","v":"00:00:00"},{"$f":"'3 - Technical ability'!H226","v":"00:00:00"},{"$f":"'3 - Technical ability'!J226","v":"00:00:00"},"F","F","T","F","F","F","T","T","T","F","F","F","F","F","F"]
["12","Microsoft applications​","12-Microsoft applications​",false,null,"Both consortium and Sub-contractor",{"$f":"IF(AND(G1=TRUE, G2=TRUE), \"T\", \"F\")","v":"F"},null,2,4,"F",null,null,null,null,null,null,null,null,null,null,null,null,null,null,null,"Box 12",{"$f":"'3 - Technical ability'!H230","v":0},false,true,{"$f":"'3 - Technical ability'!F240","v":0},{"$f":"'3 - Technical ability'!H240","v":0},{"$f":"'3 - Technical ability'!J240","v":0},{"$f":"'3 - Technical ability'!F244","v":"00:00:00"},{"$f":"'3 - Technical ability'!H244","v":"00:00:00"},{"$f":"'3 - Technical ability'!J244","v":"00:00:00"},{"$f":"'3 - Technical ability'!F246","v":"00:00:00"},{"$f":"'3 - Technical ability'!H246","v":"00:00:00"},{"$f":"'3 - Technical ability'!J246","v":"00:00:00"},"F","F","T","F","F","F","T","T","T","F","F","F","F","F","F"]
["13","Corporate IT Generalist ","13-Corporate IT Generalist ",false,null,null,null,null,2,5,"F",null,null,null,null,null,null,null,null,null,null,null,null,null,null,null,"Box 13",{"$f":"'3 - Technical ability'!H250","v":0},false,true,{"$f":"'3 - Technical ability'!F260","v":0},{"$f":"'3 - Technical ability'!H260","v":0},{"$f":"'3 - Technical ability'!J260","v":0},{"$f":"'3 - Technical ability'!F264","v":"00:00:00"},{"$f":"'3 - Technical ability'!H264","v":"00:00:00"},{"$f":"'3 - Technical ability'!J264","v":"00:00:00"},{"$f":"'3 - Technical ability'!F266","v":"00:00:00"},{"$f":"'3 - Technical ability'!H266","v":"00:00:00"},{"$f":"'3 - Technical ability'!J266","v":"00:00:00"},"F","F","T","F","F","F","T","T","T","F","F","F","F","F","F"]
["14","Communications​","14-Communications​",false,null,"Conditional formating for Consortium field",{"$f":"IF(G1=FALSE,1,0)","v":1},null,2,6,"F",null,null,null,null,null,null,null,null,null,null,null,null,null,null,null,"Box 14",{"$f":"'3 - Technical ability'!H270","v":0},false,true,{"$f":"'3 - Technical ability'!F280","v":0},{"$f":"'3 - Technical ability'!H280","v":0},{"$f":"'3 - Technical ability'!J280","v":0},{"$f":"'3 - Technical ability'!F284","v":"00:00:00"},{"$f":"'3 - Technical ability'!H284","v":"00:00:00"},{"$f":"'3 - Technical ability'!J284","v":"00:00:00"},{"$f":"'3 - Technical ability'!F286","v":"00:00:00"},{"$f":"'3 - Technical ability'!H286","v":"00:00:00"},{"$f":"'3 - Technical ability'!J286","v":"00:00:00"},"F","F","T","F","F","F","T","T","T","F","F","F",{"$f":"IF(AND(AK15 <= $BC$2, AK15 >= ($BC$2 - 1095)), \"T\", \"F\")","v":"F"},{"$f":"IF(AND(AL15 <= $BC$2, AL15 >= ($BC$2 - 1095)), \"T\", \"F\")","v":"F"},{"$f":"IF(AND(AM15 <= $BC$2, AM15 >= ($BC$2 - 1095)), \"T\", \"F\")","v":"F"}]
["15","Human resources and organisation","15-Human resources and organisation",false,null,"Conditional formating for Sub-contractor field",{"$f":"IF(G2=FALSE,1,0)","v":1},null,2,7,"F",null,null,null,null,null,null,null,null,null,null,null,null,null,null,null,"Box 15",{"$f":"'3 - Technical ability'!H290","v":0},false,true,{"$f":"'3 - Technical ability'!F300","v":0},{"$f":"'3 - Technical ability'!H300","v":0},{"$f":"'3 - Technical ability'!J300","v":0},{"$f":"'3 - Technical ability'!F304","v":"00:00:00"},{"$f":"'3 - Technical ability'!H304","v":"00:00:00"},{"$f":"'3 - Technical ability'!J304","v":"00:00:00"},{"$f":"'3 - Technical ability'!F306","v":"00:00:00"},{"$f":"'3 - Technical ability'!H306","v":"00:00:00"},{"$f":"'3 - Technical ability'!J306","v":"00:00:00"},"F","F","T","F","F","F","T","T","T","F","F","F","F","F","F"]
["16","Audit​","16-Audit​",false,null,null,null,null,3,1,"F",null,null,null,null,null,null,null,null,null,null,null,null,null,null,null,"Box 16",{"$f":"'3 - Technical ability'!H310","v":0},false,true,{"$f":"'3 - Technical ability'!F320","v":0},{"$f":"'3 - Technical ability'!H320","v":0},{"$f":"'3 - Technical ability'!J320","v":0},{"$f":"'3 - Technical ability'!F324","v":"00:00:00"},{"$f":"'3 - Technical ability'!H324","v":"00:00:00"},{"$f":"'3 - Technical ability'!J324","v":"00:00:00"},{"$f":"'3 - Technical ability'!F326","v":"00:00:00"},{"$f":"'3 - Technical ability'!H326","v":"00:00:00"},{"$f":"'3 - Technical ability'!J326","v":"00:00:00"},"F","F","T","F","F","F","T","T","T","F","F","F","F","F","F"]
["17","Administration, controls and compliance","17-Administration, controls and compliance",false,1,"Declaration on Eligibility: You have confirmed that the Declaration on Eligibility (Annex 3, Section 1) has been completed, signed and embedded.",null,null,3,2,"F",null,null,null,null,null,null,null,null,null,null,null,null,null,null,null,"Box 17",{"$f":"'3 - Technical ability'!H330","v":0},false,true,{"$f":"'3 - Technical ability'!F340","v":0},{"$f":"'3 - Technical ability'!H340","v":0},{"$f":"'3 - Technical ability'!J340","v":0},{"$f":"'3 - Technical ability'!F344","v":"00:00:00"},{"$f":"'3 - Technical ability'!H344","v":"00:00:00"},{"$f":"'3 - Technical ability'!J344","v":"00:00:00"},{"$f":"'3 - Technical ability'!F346","v":"00:00:00"},{"$f":"'3 - Technical ability'!H346","v":"00:00:00"},{"$f":"'3 - Technical ability'!J346","v":"00:00:00"},"F","F","T","F","F","F","T","T","T","F","F","F","F","F","F"]
["18","Insurance Advisory​ services","18-Insurance Advisory​ services",false,null,null,null,null,3,3,"F",null,null,null,null,null,null,null,null,null,null,null,null,null,null,null,"Box 18",{"$f":"'3 - Technical ability'!H350","v":0},false,true,{"$f":"'3 - Technical ability'!F360","v":0},{"$f":"'3 - Technical ability'!H360","v":0},{"$f":"'3 - Technical ability'!J360","v":0},{"$f":"'3 - Technical ability'!F364","v":"00:00:00"},{"$f":"'3 - Technical ability'!H364","v":"00:00:00"},{"$f":"'3 - Technical ability'!J364","v":"00:00:00"},{"$f":"'3 - Technical ability'!F366","v":"00:00:00"},{"$f":"'3 - Technical ability'!H366","v":"00:00:00"},{"$f":"'3 - Technical ability'!J366","v":"00:00:00"},"F","F","T","F","F","F","T","T","T","F","F","F","F","F","F"]
["19","Procurement​","19-Procurement​",false,2,"Declaration of Non-Collusion: You have confirmed that the Declaration of Non-Collusion (Annex 3, Section 2) has been completed, signed and embedded.",null,null,3,4,"F",null,null,null,null,null,null,null,null,null,null,null,null,null,null,null,"Box 19",{"$f":"'3 - Technical ability'!H370","v":0},false,true,{"$f":"'3 - Technical ability'!F380","v":0},{"$f":"'3 - Technical ability'!H380","v":0},{"$f":"'3 - Technical ability'!J380","v":0},{"$f":"'3 - Technical ability'!F384","v":"00:00:00"},{"$f":"'3 - Technical ability'!H384","v":"00:00:00"},{"$f":"'3 - Technical ability'!J384","v":"00:00:00"},{"$f":"'3 - Technical ability'!F386","v":"00:00:00"},{"$f":"'3 - Technical ability'!H386","v":"00:00:00"},{"$f":"'3 - Technical ability'!J386","v":"00:00:00"},"F","F","T","F","F","F","T","T","T","F","F","F","F","F","F"]
["20","Policy review, development and evaluation​","20-Policy review, development and evaluation​",false,null,null,null,null,3,5,"F",null,null,null,null,null,null,null,null,null,null,null,null,null,null,null,"Box 20",{"$f":"'3 - Technical ability'!H390","v":0},false,true,{"$f":"'3 - Technical ability'!F400","v":0},{"$f":"'3 - Technical ability'!H400","v":0},{"$f":"'3 - Technical ability'!J400","v":0},{"$f":"'3 - Technical ability'!F404","v":"00:00:00"},{"$f":"'3 - Technical ability'!H404","v":"00:00:00"},{"$f":"'3 - Technical ability'!J404","v":"00:00:00"},{"$f":"'3 - Technical ability'!F406","v":"00:00:00"},{"$f":"'3 - Technical ability'!H406","v":"00:00:00"},{"$f":"'3 - Technical ability'!J406","v":"00:00:00"},"F","F","T","F","F","F","T","T","T","F","F","F","F","F","F"]
["21","Board Affairs and Shareholder relations","21-Board Affairs and Shareholder relations",false,3,"Cover Certification Form: You have confirmed that the Cover Certification Form (Annex 3, Section 3.1) has been completed, signed and embedded.",null,null,3,6,"F",null,null,null,null,null,null,null,null,null,null,null,null,null,null,null,"Box 21",{"$f":"'3 - Technical ability'!H410","v":0},false,true,{"$f":"'3 - Technical ability'!F420","v":0},{"$f":"'3 - Technical ability'!H420","v":0},{"$f":"'3 - Technical ability'!J420","v":0},{"$f":"'3 - Technical ability'!F424","v":"00:00:00"},{"$f":"'3 - Technical ability'!H424","v":"00:00:00"},{"$f":"'3 - Technical ability'!J424","v":"00:00:00"},{"$f":"'3 - Technical ability'!F426","v":"00:00:00"},{"$f":"'3 - Technical ability'!H426","v":"00:00:00"},{"$f":"'3 - Technical ability'!J426","v":"00:00:00"},"F","F","T","F","F","F","T","T","T","F","F","F","F","F","F"]
["22","Internal policies, processes and internal control​","22-Internal policies, processes and internal control​",false,null,null,null,null,4,1,"F",null,null,null,null,null,null,null,null,null,null,null,null,null,null,null,"Box 22",{"$f":"'3 - Technical ability'!H430","v":0},false,true,{"$f":"'3 - Technical ability'!F440","v":0},{"$f":"'3 - Technical ability'!H440","v":0},{"$f":"'3 - Technical ability'!J440","v":0},{"$f":"'3 - Technical ability'!F444","v":"00:00:00"},{"$f":"'3 - Technical ability'!H444","v":"00:00:00"},{"$f":"'3 - Technical ability'!J444","v":"00:00:00"},{"$f":"'3 - Technical ability'!F446","v":"00:00:00"},{"$f":"'3 - Technical ability'!H446","v":"00:00:00"},{"$f":"'3 - Technical ability'!J446","v":"00:00:00"},"F","F","T","F","F","F","T","T","T","F","F","F","F","F","F"]
["23","Business Continuity Framework development","23-Business Continuity Framework development",false,4,"Consortium Declaration: You have confirmed that the Consortium Declaration (Annex 3, Section 3.2) has been signed and embedded by all members of the consortium.",null,null,4,2,"F",null,null,null,null,null,null,null,null,null,null,null,null,null,null,null,"Box 23",{"$f":"'3 - Technical ability'!H450","v":0},false,true,{"$f":"'3 - Technical ability'!F460","v":0},{"$f":"'3 - Technical ability'!H460","v":0},{"$f":"'3 - Technical ability'!J460","v":0},{"$f":"'3 - Technical ability'!F464","v":"00:00:00"},{"$f":"'3 - Technical ability'!H464","v":"00:00:00"},{"$f":"'3 - Technical ability'!J464","v":"00:00:00"},{"$f":"'3 - Technical ability'!F466","v":"00:00:00"},{"$f":"'3 - Technical ability'!H466","v":"00:00:00"},{"$f":"'3 - Technical ability'!J466","v":"00:00:00"},"F","F","T","F","F","F","T","T","T","F","F","F","F","F","F"]
["24","Records Management​","24-Records Management​",false,null,null,null,null,4,3,"F",null,null,null,null,null,null,null,null,null,null,null,null,null,null,null,"Box 24",{"$f":"'3 - Technical ability'!H470","v":0},false,true,{"$f":"'3 - Technical ability'!F480","v":0},{"$f":"'3 - Technical ability'!H480","v":0},{"$f":"'3 - Technical ability'!J480","v":0},{"$f":"'3 - Technical ability'!F484","v":"00:00:00"},{"$f":"'3 - Technical ability'!H484","v":"00:00:00"},{"$f":"'3 - Technical ability'!J484","v":"00:00:00"},{"$f":"'3 - Technical ability'!F486","v":"00:00:00"},{"$f":"'3 - Technical ability'!H486","v":"00:00:00"},{"$f":"'3 - Technical ability'!J486","v":"00:00:00"},"F","F","T","F","F","F","T","T","T","F","F","F","F","F","F"]
["25","Data Governance​","25-Data Governance​",false,{"$f":"IF(G12=\"T\",4,5)","v":5},"Subcontractor Commitment Letter: You have confirmed that the Subcontractor Commitment Letter (Annex 3, Section 3.3) has been signed and embedded by all subcontractors.",null,null,4,4,"F",null,null,null,null,null,null,null,null,null,null,null,null,null,null,null,"Box 25",{"$f":"'3 - Technical ability'!H490","v":0},false,true,{"$f":"'3 - Technical ability'!F500","v":0},{"$f":"'3 - Technical ability'!H500","v":0},{"$f":"'3 - Technical ability'!J500","v":0},{"$f":"'3 - Technical ability'!F504","v":"00:00:00"},{"$f":"'3 - Technical ability'!H504","v":"00:00:00"},{"$f":"'3 - Technical ability'!J504","v":"00:00:00"},{"$f":"'3 - Technical ability'!F506","v":"00:00:00"},{"$f":"'3 - Technical ability'!H506","v":"00:00:00"},{"$f":"'3 - Technical ability'!J506","v":"00:00:00"},"F","F","T","F","F","F","T","T","T","F","F","F","F","F","F"]
["26","Data Management","26-Data Management",false,null,null,null,null,4,5,"F",null,null,null,null,null,null,null,null,null,null,null,null,null,null,null,"Box 26",{"$f":"'3 - Technical ability'!H510","v":0},false,true,{"$f":"'3 - Technical ability'!F520","v":0},{"$f":"'3 - Technical ability'!H520","v":0},{"$f":"'3 - Technical ability'!J520","v":0},{"$f":"'3 - Technical ability'!F524","v":"00:00:00"},{"$f":"'3 - Technical ability'!H524","v":"00:00:00"},{"$f":"'3 - Technical ability'!J524","v":"00:00:00"},{"$f":"'3 - Technical ability'!F526","v":"00:00:00"},{"$f":"'3 - Technical ability'!H526","v":"00:00:00"},{"$f":"'3 - Technical ability'!J526","v":"00:00:00"},"F","F","T","F","F","F","T","T","T","F","F","F","F","F","F"]
["27","Information security​","27-Information security​",false,null,"You indicated that you are not part of a consortium and will also not be using subcontractors. Tick the box below and embed the necessary PDF as a single document in the designated field to confirm that all eligibility criteria have been met.\nAdditionally, If you need guidance on how to embed the PDF, click the 'Help' button.",null,null,5,1,"F",null,null,null,null,null,null,null,null,null,null,null,null,null,null,null,"Box 27",{"$f":"'3 - Technical ability'!H530","v":0},false,true,{"$f":"'3 - Technical ability'!F540","v":0},{"$f":"'3 - Technical ability'!H540","v":0},{"$f":"'3 - Technical ability'!J540","v":0},{"$f":"'3 - Technical ability'!F544","v":"00:00:00"},{"$f":"'3 - Technical ability'!H544","v":"00:00:00"},{"$f":"'3 - Technical ability'!J544","v":"00:00:00"},{"$f":"'3 - Technical ability'!F546","v":"00:00:00"},{"$f":"'3 - Technical ability'!H546","v":"00:00:00"},{"$f":"'3 - Technical ability'!J546","v":"00:00:00"},"F","F","T","F","F","F","T","T","T","F","F","F","F","F","F"]
["28","Environmental, social and governance framework​","28-Environmental, social and governance framework​",false,null,"You indicated that you are part of a consortium but will not be using subcontractors. Please provide the legal entity names of the consortium leader and all consortium members, tick the box below and embed the necessary PDF as a single document in the designated field to confirm that all eligibility criteria have been met. Additionally, if you need guidance on how to embed the PDF, click the 'Help' button.",null,null,5,2,"F",null,null,null,null,null,null,null,null,null,null,null,null,null,null,null,"Box 28",{"$f":"'3 - Technical ability'!H550","v":0},false,true,{"$f":"'3 - Technical ability'!F560","v":0},{"$f":"'3 - Technical ability'!H560","v":0},{"$f":"'3 - Technical ability'!J560","v":0},{"$f":"'3 - Technical ability'!F564","v":"00:00:00"},{"$f":"'3 - Technical ability'!H564","v":"00:00:00"},{"$f":"'3 - Technical ability'!J564","v":"00:00:00"},{"$f":"'3 - Technical ability'!F566","v":"00:00:00"},{"$f":"'3 - Technical ability'!H566","v":"00:00:00"},{"$f":"'3 - Technical ability'!J566","v":"00:00:00"},"F","F","T","F","F","F","T","T","T","F","F","F","F","F","F"]
["29","Strategy development and performance measurement​","29-Strategy development and performance measurement​",false,null,"You indicated that you are not applying as part of a consortium but will be using subcontractor(s). Please provide your legal entity name as well as the legal entity names of all subcontractors, tick the box below and embed the necessary PDF as a single document in the designated field to confirm that all eligibility criteria have been met. Additionally, if you need guidance on how to embed the PDF, click the 'Help' button.",null,null,5,3,"F",null,null,null,null,null,null,null,null,null,null,null,null,null,null,null,"Box 29",{"$f":"'3 - Technical ability'!H570","v":0},false,true,{"$f":"'3 - Technical ability'!F580","v":0},{"$f":"'3 - Technical ability'!H580","v":0},{"$f":"'3 - Technical ability'!J580","v":0},{"$f":"'3 - Technical ability'!F584","v":"00:00:00"},{"$f":"'3 - Technical ability'!H584","v":"00:00:00"},{"$f":"'3 - Technical ability'!J584","v":"00:00:00"},{"$f":"'3 - Technical ability'!F586","v":"00:00:00"},{"$f":"'3 - Technical ability'!H586","v":"00:00:00"},{"$f":"'3 - Technical ability'!J586","v":"00:00:00"},"F","F","T","F","F","F","T","T","T","F","F","F","F","F","F"]
["30","Project portfolio, programme and project management","30-Project portfolio, programme and project management",false,null,"You indicated that you are part of a consortium and will also be using subcontractors. Please provide the legal entity names of the consortium leader, all members, and subcontractors, tick the box below and embed the necessary PDF as a single document in the designated field to confirm that all eligibility criteria have been met. Additionally, if you need guidance on how to embed the PDF, click the 'Help' button.",null,null,5,4,"F",null,null,null,null,null,null,null,null,null,null,null,null,null,null,null,"Box 30",{"$f":"'3 - Technical ability'!H590","v":0},false,true,{"$f":"'3 - Technical ability'!F600","v":0},{"$f":"'3 - Technical ability'!H600","v":0},{"$f":"'3 - Technical ability'!J600","v":0},{"$f":"'3 - Technical ability'!F604","v":"00:00:00"},{"$f":"'3 - Technical ability'!H604","v":"00:00:00"},{"$f":"'3 - Technical ability'!J604","v":"00:00:00"},{"$f":"'3 - Technical ability'!F606","v":"00:00:00"},{"$f":"'3 - Technical ability'!H606","v":"00:00:00"},{"$f":"'3 - Technical ability'!J606","v":"00:00:00"},"F","F","T","F","F","F","T","T","T","F","F","F","F","F","F"]
["31","Business Analysis​","31-Business Analysis​",false,null,null,null,null,6,1,"F",null,null,null,null,null,null,null,null,null,null,null,null,null,null,null,"Box 31",{"$f":"'3 - Technical ability'!H610","v":0},false,true,{"$f":"'3 - Technical ability'!F620","v":0},{"$f":"'3 - Technical ability'!H620","v":0},{"$f":"'3 - Technical ability'!J620","v":0},{"$f":"'3 - Technical ability'!F624","v":"00:00:00"},{"$f":"'3 - Technical ability'!H624","v":"00:00:00"},{"$f":"'3 - Technical ability'!J624","v":"00:00:00"},{"$f":"'3 - Technical ability'!F626","v":"00:00:00"},{"$f":"'3 - Technical ability'!H626","v":"00:00:00"},{"$f":"'3 - Technical ability'!J626","v":"00:00:00"},"F","F","T","F","F","F","T","T","T","F","F","F","F","F","F"]
["32","Change management​","32-Change management​",false,null,null,null,null,6,2,"F",null,null,null,null,null,null,null,null,null,null,null,null,null,null,null,"Box 32",{"$f":"'3 - Technical ability'!H630","v":0},false,true,{"$f":"'3 - Technical ability'!F640","v":0},{"$f":"'3 - Technical ability'!H640","v":0},{"$f":"'3 - Technical ability'!J640","v":0},{"$f":"'3 - Technical ability'!F644","v":"00:00:00"},{"$f":"'3 - Technical ability'!H644","v":"00:00:00"},{"$f":"'3 - Technical ability'!J644","v":"00:00:00"},{"$f":"'3 - Technical ability'!F646","v":"00:00:00"},{"$f":"'3 - Technical ability'!H646","v":"00:00:00"},{"$f":"'3 - Technical ability'!J646","v":"00:00:00"},"F","F","T","F","F","F","T","T","T","F","F","F","F","F","F"]
["33","Physical security and Facilities Management (FM) support","33-Physical security and Facilities Management (FM) support",false,null,null,null,null,6,3,"F",null,null,null,null,null,null,null,null,null,null,null,null,null,null,null,"Box 33",{"$f":"'3 - Technical ability'!H650","v":0},false,true,{"$f":"'3 - Technical ability'!F660","v":0},{"$f":"'3 - Technical ability'!H660","v":0},{"$f":"'3 - Technical ability'!J660","v":0},{"$f":"'3 - Technical ability'!F664","v":"00:00:00"},{"$f":"'3 - Technical ability'!H664","v":"00:00:00"},{"$f":"'3 - Technical ability'!J664","v":"00:00:00"},{"$f":"'3 - Technical ability'!F666","v":"00:00:00"},{"$f":"'3 - Technical ability'!H666","v":"00:00:00"},{"$f":"'3 - Technical ability'!J666","v":"00:00:00"},"F","F","T","F","F","F","T","T","T","F","F","F","F","F","F"]
["34","Personal data protection advisory services (excluding legal services)","34-Personal data protection advisory services (excluding legal services)",false,null,null,null,null,7,1,"F",null,null,null,null,null,null,null,null,null,null,null,null,null,null,null,"Box 34",{"$f":"'3 - Technical ability'!H670","v":0},false,true,{"$f":"'3 - Technical ability'!F680","v":0},{"$f":"'3 - Technical ability'!H680","v":0},{"$f":"'3 - Technical ability'!J680","v":0},{"$f":"'3 - Technical ability'!F684","v":"00:00:00"},{"$f":"'3 - Technical ability'!H684","v":"00:00:00"},{"$f":"'3 - Technical ability'!J684","v":"00:00:00"},{"$f":"'3 - Technical ability'!F686","v":"00:00:00"},{"$f":"'3 - Technical ability'!H686","v":"00:00:00"},{"$f":"'3 - Technical ability'!J686","v":"00:00:00"},"F","F","T","F","F","F","T","T","T","F","F","F","F","F","F"]
["35","Compliance and ethics advisory services","35-Compliance and ethics advisory services",false,null,null,null,null,7,2,"F",null,null,null,null,null,null,null,null,null,null,null,null,null,null,null,"Box 35",{"$f":"'3 - Technical ability'!H690","v":0},false,true,{"$f":"'3 - Technical ability'!F700","v":0},{"$f":"'3 - Technical ability'!H700","v":0},{"$f":"'3 - Technical ability'!J700","v":0},{"$f":"'3 - Technical ability'!F704","v":"00:00:00"},{"$f":"'3 - Technical ability'!H704","v":"00:00:00"},{"$f":"'3 - Technical ability'!J704","v":"00:00:00"},{"$f":"'3 - Technical ability'!F706","v":"00:00:00"},{"$f":"'3 - Technical ability'!H706","v":"00:00:00"},{"$f":"'3 - Technical ability'!J706","v":"00:00:00"},"F","F","T","F","F","F","T","T","T","F","F","F","F","F","F"]
["36","Macro-economic and financial risk assessment and evaluation of financial assistance programmes​","36-Macro-economic and financial risk assessment and evaluation of financial assistance programmes​",false,null,null,null,null,8,1,"F",null,null,null,null,null,null,null,null,null,null,null,null,null,null,null,"Box 36",{"$f":"'3 - Technical ability'!H710","v":0},false,true,{"$f":"'3 - Technical ability'!F720","v":0},{"$f":"'3 - Technical ability'!H720","v":0},{"$f":"'3 - Technical ability'!J720","v":0},{"$f":"'3 - Technical ability'!F724","v":"00:00:00"},{"$f":"'3 - Technical ability'!H724","v":"00:00:00"},{"$f":"'3 - Technical ability'!J724","v":"00:00:00"},{"$f":"'3 - Technical ability'!F726","v":"00:00:00"},{"$f":"'3 - Technical ability'!H726","v":"00:00:00"},{"$f":"'3 - Technical ability'!J726","v":"00:00:00"},"F","F","T","F","F","F","T","T","T","F","F","F","F","F","F"]
["37","Macro/micro economic and financial sector data analysis and systems​","37-Macro/micro economic and financial sector data analysis and systems​",false,null,null,null,null,1,0,"T",null,null,null,null,null,null,null,null,null,null,null,null,null,null,null,"Box 37",{"$f":"'3 - Technical ability'!H730","v":0},false,true,{"$f":"'3 - Technical ability'!F740","v":0},{"$f":"'3 - Technical ability'!H740","v":0},{"$f":"'3 - Technical ability'!J740","v":0},{"$f":"'3 - Technical ability'!F744","v":"00:00:00"},{"$f":"'3 - Technical ability'!H744","v":"00:00:00"},{"$f":"'3 - Technical ability'!J744","v":"00:00:00"},{"$f":"'3 - Technical ability'!F746","v":"00:00:00"},{"$f":"'3 - Technical ability'!H746","v":"00:00:00"},{"$f":"'3 - Technical ability'!J746","v":"00:00:00"},"F","F","T","F","F","F","T","T","T","F","F","F","F","F","F"]
["38","Common Single  Resolution Fund backstop, Direct Recapitalisation Instrument and Repayment capacity assessment​","38-Common Single  Resolution Fund backstop, Direct Recapitalisation Instrument and Repayment capacity assessment​",false,null,null,null,null,2,0,"F",null,null,null,null,null,null,null,null,null,null,null,null,null,null,null,"Box 38",{"$f":"'3 - Technical ability'!H750","v":0},false,true,{"$f":"'3 - Technical ability'!F760","v":0},{"$f":"'3 - Technical ability'!H760","v":0},{"$f":"'3 - Technical ability'!J760","v":0},{"$f":"'3 - Technical ability'!F764","v":"00:00:00"},{"$f":"'3 - Technical ability'!H764","v":"00:00:00"},{"$f":"'3 - Technical ability'!J764","v":"00:00:00"},{"$f":"'3 - Technical ability'!F766","v":"00:00:00"},{"$f":"'3 - Technical ability'!H766","v":"00:00:00"},{"$f":"'3 - Technical ability'!J766","v":"00:00:00"},"F","F","T","F","F","F","T","T","T","F","F","F","F","F","F"]
["39","Bank restructuring, non performing loans disposal, asset management companies and distressed asset management​","39-Bank restructuring, non performing loans disposal, asset management companies and distressed asset management​",false,null,null,null,null,3,0,"F",null,null,null,null,null,null,null,null,null,null,null,null,null,null,null,"Box 39",{"$f":"'3 - Technical ability'!H770","v":0},false,true,{"$f":"'3 - Technical ability'!F780","v":0},{"$f":"'3 - Technical ability'!H780","v":0},{"$f":"'3 - Technical ability'!J780","v":0},{"$f":"'3 - Technical ability'!F784","v":"00:00:00"},{"$f":"'3 - Technical ability'!H784","v":"00:00:00"},{"$f":"'3 - Technical ability'!J784","v":"00:00:00"},{"$f":"'3 - Technical ability'!F786","v":"00:00:00"},{"$f":"'3 - Technical ability'!H786","v":"00:00:00"},{"$f":"'3 - Technical ability'!J786","v":"00:00:00"},"F","F","T","F","F","F","T","T","T","F","F","F","F","F","F"]
["40","Banking sector’s future developments like Fintech, BigTech, business model evolution​","40-Banking sector’s future developments like Fintech, BigTech, business model evolution​",false,null,null,null,null,4,0,"F",null,null,null,null,null,null,null,null,null,null,null,null,null,null,null,"Box 40",{"$f":"'3 - Technical ability'!H790","v":0},false,true,{"$f":"'3 - Technical ability'!F800","v":0},{"$f":"'3 - Technical ability'!H800","v":0},{"$f":"'3 - Technical ability'!J800","v":0},{"$f":"'3 - Technical ability'!F804","v":"00:00:00"},{"$f":"'3 - Technical ability'!H804","v":"00:00:00"},{"$f":"'3 - Technical ability'!J804","v":"00:00:00"},{"$f":"'3 - Technical ability'!F806","v":"00:00:00"},{"$f":"'3 - Technical ability'!H806","v":"00:00:00"},{"$f":"'3 - Technical ability'!J806","v":"00:00:00"},"F","F","T","F","F","F","T","T","T","F","F","F","F","F","F"]
[null,null,null,null,null,null,null,null,5,0,"F",null,null,null,null,null,null,null,null,null,null,null,null,null,null,null,"Box 41",{"$f":"'3 - Technical ability'!H810","v":0},false,true,{"$f":"'3 - Technical ability'!F820","v":0},{"$f":"'3 - Technical ability'!H820","v":0},{"$f":"'3 - Technical ability'!J820","v":0},{"$f":"'3 - Technical ability'!F824","v":"00:00:00"},{"$f":"'3 - Technical ability'!H824","v":"00:00:00"},{"$f":"'3 - Technical ability'!J824","v":"00:00:00"},{"$f":"'3 - Technical ability'!F826","v":"00:00:00"},{"$f":"'3 - Technical ability'!H826","v":"00:00:00"},{"$f":"'3 - Technical ability'!J826","v":"00:00:00"},"F","F","T","F","F","F","T","T","T","F","F","F","F","F","F"]
[null,null,null,null,null,null,null,null,6,0,"F",null,null,null,null,null,null,null,null,null,null,null,null,null,null,null,"Box 42",{"$f":"'3 - Technical ability'!H830","v":0},false,true,{"$f":"'3 - Technical ability'!F840","v":0},{"$f":"'3 - Technical ability'!H840","v":0},{"$f":"'3 - Technical ability'!J840","v":0},{"$f":"'3 - Technical ability'!F844","v":"00:00:00"},{"$f":"'3 - Technical ability'!H844","v":"00:00:00"},{"$f":"'3 - Technical ability'!J844","v":"00:00:00"},{"$f":"'3 - Technical ability'!F846","v":"00:00:00"},{"$f":"'3 - Technical ability'!H846","v":"00:00:00"},{"$f":"'3 - Technical ability'!J846","v":"00:00:00"},"F","F","T","F","F","F","T","T","T","F","F","F","F","F","F"]
[null,null,null,null,null,null,null,null,7,0,"F",null,null,null,null,null,null,null,null,null,null,null,null,null,null,null,"Box 43",{"$f":"'3 - Technical ability'!H850","v":0},false,true,{"$f":"'3 - Technical ability'!F860","v":0},{"$f":"'3 - Technical ability'!H860","v":0},{"$f":"'3 - Technical ability'!J860","v":0},{"$f":"'3 - Technical ability'!F864","v":"00:00:00"},{"$f":"'3 - Technical ability'!H864","v":"00:00:00"},{"$f":"'3 - Technical ability'!J864","v":"00:00:00"},{"$f":"'3 - Technical ability'!F866","v":"00:00:00"},{"$f":"'3 - Technical ability'!H866","v":"00:00:00"},{"$f":"'3 - Technical ability'!J866","v":"00:00:00"},"F","F","T","F","F","F","T","T","T","F","F","F","F","F","F"]
[null,null,null,null,null,null,null,null,8,0,"F",null,null,null,null,null,null,null,null,null,null,null,null,null,null,null,"Box 44",{"$f":"'3 - Technical ability'!H870","v":0},false,true,{"$f":"'3 - Technical ability'!F880","v":0},{"$f":"'3 - Technical ability'!H880","v":0},{"$f":"'3 - Technical ability'!J880","v":0},{"$f":"'3 - Technical ability'!F884","v":"00:00:00"},{"$f":"'3 - Technical ability'!H884","v":"00:00:00"},{"$f":"'3 - Technical ability'!J884","v":"00:00:00"},{"$f":"'3 - Technical ability'!F886","v":"00:00:00"},{"$f":"'3 - Technical ability'!H886","v":"00:00:00"},{"$f":"'3 - Technical ability'!J886","v":"00:00:00"},"F","F","T","F","F","F","T","T","T","F","F","F","F","F","F"]
[null,null,null,null,null,null,null,null,9,0,"F",null,null,null,null,null,null,null,null,null,null,null,null,null,null,null,"Box 45",{"$f":"'3 - Technical ability'!H890","v":0},false,true,{"$f":"'3 - Technical ability'!F900","v":0},{"$f":"'3 - Technical ability'!H900","v":0},{"$f":"'3 - Technical ability'!J900","v":0},{"$f":"'3 - Technical ability'!F904","v":"00:00:00"},{"$f":"'3 - Technical ability'!H904","v":"00:00:00"},{"$f":"'3 - Technical ability'!J904","v":"00:00:00"},{"$f":"'3 - Technical ability'!F906","v":"00:00:00"},{"$f":"'3 - Technical ability'!H906","v":"00:00:00"},{"$f":"'3 - Technical ability'!J906","v":"00:00:00"},"F","F","T","F","F","F","T","T","T","F","F","F","F","F","F"]
[null,null,null,null,null,null,null,null,0,1,"F",null,null,null,null,null,null,null,null,null,null,null,null,null,null,null,"Box 46",{"$f":"'3 - Technical ability'!H910","v":0},false,true,{"$f":"'3 - Technical ability'!F920","v":0},{"$f":"'3 - Technical ability'!H920","v":0},{"$f":"'3 - Technical ability'!J920","v":0},{"$f":"'3 - Technical ability'!F924","v":"00:00:00"},{"$f":"'3 - Technical ability'!H924","v":"00:00:00"},{"$f":"'3 - Technical ability'!J924","v":"00:00:00"},{"$f":"'3 - Technical ability'!F926","v":"00:00:00"},{"$f":"'3 - Technical ability'!H926","v":"00:00:00"},{"$f":"'3 - Technical ability'!J926","v":"00:00:00"},"F","F","T","F","F","F","T","T","T","F","F","F","F","F","F"]
[null,null,null,null,null,null,null,null,0,2,"F",null,null,null,null,null,null,null,null,null,null,null,null,null,null,null,"Box 47",{"$f":"'3 - Technical ability'!H930","v":0},false,true,{"$f":"'3 - Technical ability'!F940","v":0},{"$f":"'3 - Technical ability'!H940","v":0},{"$f":"'3 - Technical ability'!J940","v":0},{"$f":"'3 - Technical ability'!F944","v":"00:00:00"},{"$f":"'3 - Technical ability'!H944","v":"00:00:00"},{"$f":"'3 - Technical ability'!J944","v":"00:00:00"},{"$f":"'3 - Technical ability'!F946","v":"00:00:00"},{"$f":"'3 - Technical ability'!H946","v":"00:00:00"},{"$f":"'3 - Technical ability'!J946","v":"00:00:00"},"F","F","T","F","F","F","T","T","T","F","F","F","F","F","F"]
[null,null,null,null,null,null,null,null,0,3,"F",null,null,null,null,null,null,null,null,null,null,null,null,null,null,null,"Box 48",{"$f":"'3 - Technical ability'!H950","v":0},false,true,{"$f":"'3 - Technical ability'!F960","v":0},{"$f":"'3 - Technical ability'!H960","v":0},{"$f":"'3 - Technical ability'!J960","v":0},{"$f":"'3 - Technical ability'!F964","v":"00:00:00"},{"$f":"'3 - Technical ability'!H964","v":"00:00:00"},{"$f":"'3 - Technical ability'!J964","v":"00:00:00"},{"$f":"'3 - Technical ability'!F966","v":"00:00:00"},{"$f":"'3 - Technical ability'!H966","v":"00:00:00"},{"$f":"'3 - Technical ability'!J966","v":"00:00:00"},"F","F","T","F","F","F","T","T","T","F","F","F","F","F","F"]
[null,null,null,null,null,null,null,null,0,4,"F",null,null,null,null,null,null,null,null,null,null,null,null,null,null,null,"Box 49",{"$f":"'3 - Technical ability'!H970","v":0},false,true,{"$f":"'3 - Technical ability'!F980","v":0},{"$f":"'3 - Technical ability'!H980","v":0},{"$f":"'3 - Technical ability'!J980","v":0},{"$f":"'3 - Technical ability'!F984","v":"00:00:00"},{"$f":"'3 - Technical ability'!H984","v":"00:00:00"},{"$f":"'3 - Technical ability'!J984","v":"00:00:00"},{"$f":"'3 - Technical ability'!F986","v":"00:00:00"},{"$f":"'3 - Technical ability'!H986","v":"00:00:00"},{"$f":"'3 - Technical ability'!J986","v":"00:00:00"},"F","F","T","F","F","F","T","T","T","F","F","F","F","F","F"]
[null,null,null,null,null,null,null,null,0,5,"F",null,null,null,null,null,null,null,null,null,null,null,null,null,null,null,"Box 50",{"$f":"'3 - Technical ability'!H990","v":0},false,true,{"$f":"'3 - Technical ability'!F1000","v":0},{"$f":"'3 - Technical ability'!H1000","v":0},{"$f":"'3 - Technical ability'!J1000","v":0},{"$f":"'3 - Technical ability'!F1004","v":"00:00:00"},{"$f":"'3 - Technical ability'!H1004","v":"00:00:00"},{"$f":"'3 - Technical ability'!J1004","v":"00:00:00"},{"$f":"'3 - Technical ability'!F1006","v":"00:00:00"},{"$f":"'3 - Technical ability'!H1006","v":"00:00:00"},{"$f":"'3 - Technical ability'!J1006","v":"00:00:00"},"F","F","T","F","F","F","T","T","T","F","F","F","F","F","F"]
[null,null,null,null,null,null,null,null,0,6,"F"]
[null,null,null,null,null,null,null,null,0,7,"F"]
[null,null,null,null,null,null,null,null,0,8,"F"]
[null,null,null,null,null,null,null,null,0,9,"F"]
[null,null,null,null,null,null,null,null,0,0,"F"]